Workbook

Sheet 公开目录
A1: 公 开 目 录
A3: 一、2020年攀枝花市地方一般公共预算收入决算表
A4: ………………………………………………………………………… 1
A5: 二、2020年攀枝花市地方一般公共预算支出决算表
A6: ………………………………………………………………………… 2
A7: 三、2020年攀枝花市一般公共预算收支决算平衡表
A8: ………………………………………………………………………… 46
A9: 四、2020年攀枝花市一般公共预算经济分类科目支出决算表
A10: ………………………………………………………………………… 49
A11: 五、2020年攀枝花市市本级地方一般公共预算收入决算表
A12: ………………………………………………………………………… 52
A13: 六、2020年攀枝花市市本级地方一般公共预算支出决算表
A14: ………………………………………………………………………… 53
A15: 七、关于2020年攀枝花市市本级一般公共预算支出决算情况的说明
A16: ………………………………………………………………………… 95
A17: 八、2020年攀枝花市市本级一般公共预算收支决算平衡表
A18: ………………………………………………………………………… 96
A19: 九、2020年攀枝花市市本级一般公共预算经济分类科目支出决算表
A20: ………………………………………………………………………… 99
A21: 十、2020年省对市税返和转移支付补助决算表
A22: …………………………………………………………………………102
A23: 十一、2020年市对区税返和转移支付补助决算表
A24: …………………………………………………………………………105
A25: 十二、2020年攀枝花市政府性基金预算收入决算表
A26: …………………………………………………………………………108
A27: 十三、2020年攀枝花市政府性基金预算支出决算表
A28: …………………………………………………………………………109
A29: 十四、2020年攀枝花市政府性基金预算收支决算平衡表
A30: …………………………………………………………………………118
A31: 十五、2020年攀枝花市市本级政府性基金预算收入决算表
A32: …………………………………………………………………………119
A33: 十六、2020年攀枝花市市本级政府性基金预算支出决算表
A34: …………………………………………………………………………120
A35: 十七、2020年攀枝花市市本级政府性基金预算收支决算平衡表
A36: …………………………………………………………………………129
A37: 十八、2020年省对市政府性基金预算转移支付补助决算表
A38: …………………………………………………………………………130
A39: 十九、2020年市对区政府性基金预算转移支付补助决算表
A40: …………………………………………………………………………131
A41: 二十、2020年攀枝花市市本级重大政府投资项目表
A42: …………………………………………………………………………132
A43: 二十一、2020年攀枝花市国有资本经营预算收支决算平衡表
A44: …………………………………………………………………………133
A45: 二十二、2020年攀枝花市市本级国有资本经营预算收支决算平衡表
A46: …………………………………………………………………………135
A47: 二十三、2020年攀枝花市及市本级社会保险基金预算收入决算表
A48: …………………………………………………………………………137
A49: 二十四、2020年市对区一般公共预算专项转移支付决算表（分科目）
A50: …………………………………………………………………………138
A51: 二十四、2020年市对区一般公共预算专项转移支付决算表（分县区）
A52: …………………………………………………………………………146
A53: 二十六、2020年市本级结转资金及2021年1至6月使用情况表
A54: …………………………………………………………………………147
A55: 二十七、2020年攀枝花市地方政府一般债务余额情况表
A56: …………………………………………………………………………148
A57: 二十八、2020年攀枝花市地方政府一般债务分地区情况表
A58: …………………………………………………………………………149
A59: 二十九、2020年攀枝花市地方政府专项债务余额情况表
A60: …………………………………………………………………………150
A61: 三十、2020年攀枝花市地方政府专项债务分地区情况表
A62: …………………………………………………………………………151
A63: 三十一、2020年攀枝花市地方政府性债务余额情况汇总表
A64: …………………………………………………………………………152
A65: 三十二、2020年攀枝花市省本级地方政府性债务余额情况汇总表
A66: …………………………………………………………………………153
A67: 三十三、2020年攀枝花市地方政府债务分地区情况汇总表
A68: …………………………………………………………………………154
A69: 三十四、2020年攀枝花市政府债务变动情况表
A70: …………………………………………………………………………155
A71: 三十五、攀枝花市分地区政府债务十年到期情况表
A72: …………………………………………………………………………156

Sheet 1.全市一般公共预算收入决算表
A1: 2020年攀枝花市地方一般公共预算收入决算表
E2: 单位：万元，%
A3: 预算科目 | B3: 年初预算数 | C3: 变动预算数 | D3: 决算数 | E3: 为预算 | F3: 为上年决算
A4: 一、税收收入 | B4: 475,100 | C4: 475,360 | D4: 479,351 | E4: 100.8 | F4: 104.3
A5: 增值税 | B5: 223,602 | C5: 223,862 | D5: 199,705 | E5: 89.2 | F5: 94.7
A6: 消费税
A7: 企业所得税 | B7: 41,889 | C7: 41,889 | D7: 50,763 | E7: 121.2 | F7: 122.7
A8: 企业所得税退税
A9: 个人所得税(款) | B9: 8,911 | C9: 8,911 | D9: 9,693 | E9: 108.8 | F9: 104.8
A10: 资源税 | B10: 30,062 | C10: 30,062 | D10: 39,502 | E10: 131.4 | F10: 138.5
A11: 城市维护建设税 | B11: 37,771 | C11: 37,771 | D11: 33,285 | E11: 88.1 | F11: 93.4
A12: 房产税 | B12: 16,394 | C12: 16,394 | D12: 16,399 | E12: 100.0 | F12: 88.4
A13: 印花税 | B13: 12,743 | C13: 12,743 | D13: 12,570 | E13: 98.6 | F13: 98.7
A14: 城镇土地使用税 | B14: 27,458 | C14: 27,458 | D14: 33,977 | E14: 123.7 | F14: 126.1
A15: 土地增值税 | B15: 8,821 | C15: 8,821 | D15: 15,018 | E15: 170.3 | F15: 107.0
A16: 车船税(款) | B16: 6,764 | C16: 6,764 | D16: 7,152 | E16: 105.7 | F16: 106.0
A17: 耕地占用税(款) | B17: 28,599 | C17: 28,599 | D17: 24,706 | E17: 86.4 | F17: 144.5
A18: 契税(款) | B18: 20,968 | C18: 20,968 | D18: 28,202 | E18: 134.5 | F18: 103.3
A19: 烟叶税(款) | B19: 5,598 | C19: 5,598 | D19: 4,113 | E19: 73.5 | F19: 79.6
A20: 环境保护税(款) | B20: 5,475 | C20: 5,475 | D20: 4,014 | E20: 73.3 | F20: 75.1
A21: 其他税收收入 | B21: 45 | C21: 45 | D21: 252
A22: 二、非税收入 | B22: 165,600 | C22: 197,212 | D22: 203,156 | E22: 103.0 | F22: 119.4
A23: 专项收入 | B23: 30,450 | C23: 30,450 | D23: 32,536 | E23: 106.9 | F23: 97.9
A24: 行政事业性收费收入 | B24: 22,197 | C24: 22,197 | D24: 21,679 | E24: 97.7 | F24: 93.7
A25: 罚没收入 | B25: 14,850 | C25: 14,850 | D25: 33,230 | E25: 223.8 | F25: 159.7
A26: 国有资源(资产)有偿使用收入 | B26: 55,270 | C26: 86,882 | D26: 78,588 | E26: 90.5 | F26: 198.6
A27: 政府住房基金收入 | B27: 6,190 | C27: 6,190 | D27: 7,329 | E27: 118.4 | F27: 55.3
A28: 其他收入(款) | B28: 36,643 | C28: 36,643 | D28: 29,794 | E28: 81.3 | F28: 74.3
A29: 一般公共预算收入 | B29: 640,700 | C29: 672,572 | D29: 682,507 | E29: 101.5 | F29: 108.4

Sheet 2.全市一般公共预算支出决算表
A1: 2020年攀枝花市地方一般公共预算支出决算表
D2: 单位：万元，%
A3: 预算科目 | B3: 年初预算数 | C3: 变动预算数 | D3: 决算数 | E3: 为预算 | F3: 为上年决算
A4: 一般公共服务支出 | B4: 149,317 | C4: 165,995 | D4: 165,678 | E4: 99.8 | F4: 101.69
A5: 人大事务 | B5: 5,771 | C5: 5,197 | D5: 5,206 | E5: 100.2 | F5: 99.82
A6: 行政运行 | B6: 4,475 | C6: 3,749 | D6: 3,749 | E6: 100.0 | F6: 98.06
A7: 一般行政管理事务 | B7: 489 | C7: 644 | D7: 654 | E7: 101.6 | F7: 110.1
A8: 机关服务 | B8: 0 | C8: 2 | D8: 2 | E8: 100.0 | F8: 0
A9: 人大会议 | B9: 406 | C9: 466 | D9: 466 | E9: 100.0 | F9: 110.16
A10: 人大立法 | B10: 33 | C10: 35 | D10: 35 | E10: 100.0 | F10: 116.66
A11: 人大监督 | B11: 47 | C11: 27 | D11: 27 | E11: 100.0 | F11: 112.5
A12: 人大代表履职能力提升 | B12: 23 | C12: 0 | D12: 0 | F12: 0
A13: 代表工作 | B13: 174 | C13: 162 | D13: 162 | E13: 100.0 | F13: 98.18
A14: 人大信访工作 | B14: 0 | C14: 0 | D14: 0 | F14: 0
A15: 事业运行 | B15: 93 | C15: 102 | D15: 101 | E15: 99.0 | F15: 114.77
A16: 其他人大事务支出 | B16: 31 | C16: 10 | D16: 10 | E16: 100.0 | F16: 62.5
A17: 政协事务 | B17: 4,318 | C17: 4,121 | D17: 4,131 | E17: 100.2 | F17: 109.17
A18: 行政运行 | B18: 3,363 | C18: 3,005 | D18: 3,004 | E18: 100.0 | F18: 106.14
A19: 一般行政管理事务 | B19: 376 | C19: 613 | D19: 624 | E19: 101.8 | F19: 143.44
A20: 机关服务 | B20: 0 | C20: 0 | D20: 0 | F20: 0
A21: 政协会议 | B21: 297 | C21: 234 | D21: 234 | E21: 100.0 | F21: 88.63
A22: 委员视察 | B22: 159 | C22: 131 | D22: 131 | E22: 100.0 | F22: 100.76
A23: 参政议政 | B23: 22 | C23: 23 | D23: 23 | E23: 100.0 | F23: 121.05
A24: 事业运行 | B24: 93 | C24: 101 | D24: 101 | E24: 100.0 | F24: 136.48
A25: 其他政协事务支出 | B25: 8 | C25: 14 | D25: 14 | E25: 100.0 | F25: 43.75
A26: 政府办公厅(室)及相关机构事务 | B26: 48,249 | C26: 57,215 | D26: 57,299 | E26: 100.1 | F26: 101.68
A27: 行政运行 | B27: 26,828 | C27: 25,933 | D27: 26,036 | E27: 100.4 | F27: 95.06
A28: 一般行政管理事务 | B28: 5,476 | C28: 13,399 | D28: 13,373 | E28: 99.8 | F28: 151.72
A29: 机关服务 | B29: 3,121 | C29: 3,222 | D29: 3,252 | E29: 100.9 | F29: 117.44
A30: 专项服务 | B30: 4 | C30: 10 | D30: 10 | E30: 100.0 | F30: 166.66
A31: 专项业务活动 | B31: 112 | C31: 105 | D31: 105 | E31: 100.0 | F31: 120.68
A32: 政务公开审批 | B32: 1,003 | C32: 597 | D32: 597 | E32: 100.0 | F32: 95.98
A33: 信访事务 | B33: 366 | C33: 614 | D33: 603 | E33: 98.2 | F33: 85.89
A34: 参事事务 | B34: 0 | C34: 0 | D34: 0 | F34: 0
A35: 事业运行 | B35: 9,336 | C35: 9,444 | D35: 9,431 | E35: 99.9 | F35: 102.85
A36: 其他政府办公厅(室)及相关机构事务支出 | B36: 2,003 | C36: 3,891 | D36: 3,892 | E36: 100.0 | F36: 57.31
A37: 发展与改革事务 | B37: 3,989 | C37: 4,748 | D37: 4,305 | E37: 90.7 | F37: 110.04
A38: 行政运行 | B38: 2,910 | C38: 2,675 | D38: 2,624 | E38: 98.1 | F38: 103.26
A39: 一般行政管理事务 | B39: 277 | C39: 284 | D39: 283 | E39: 99.6 | F39: 166.47
A40: 机关服务 | B40: 0 | C40: 0 | D40: 0 | F40: 0
A41: 战略规划与实施 | B41: 0 | C41: 64 | D41: 64 | E41: 100.0 | F41: 41.55
A42: 日常经济运行调节 | B42: 0 | C42: 0 | D42: 0 | F42: 0
A43: 社会事业发展规划 | B43: 0 | C43: 0 | D43: 0 | F43: 0
A44: 经济体制改革研究 | B44: 0 | C44: 0 | D44: 0 | F44: 0
A45: 物价管理 | B45: 7 | C45: 7 | D45: 7 | E45: 100.0 | F45: 63.63
A46: 事业运行 | B46: 780 | C46: 866 | D46: 865 | E46: 99.9 | F46: 105.1
A47: 其他发展与改革事务支出 | B47: 15 | C47: 852 | D47: 462 | E47: 54.2 | F47: 216.9
A48: 统计信息事务 | B48: 3,688 | C48: 4,722 | D48: 4,716 | E48: 99.9 | F48: 151.2
A49: 行政运行 | B49: 1,803 | C49: 1,532 | D49: 1,532 | E49: 100.0 | F49: 98.14
A50: 一般行政管理事务 | B50: 152 | C50: 86 | D50: 86 | E50: 100.0 | F50: 81.9
A51: 机关服务 | B51: 0 | C51: 0 | D51: 0 | F51: 0
A52: 信息事务 | B52: 0 | C52: 0 | D52: 0 | F52: 0
A53: 专项统计业务 | B53: 279 | C53: 787 | D53: 787 | E53: 100.0 | F53: 295.86
A54: 统计管理 | B54: 0 | C54: 1 | D54: 1 | E54: 100.0 | F54: 0
A55: 专项普查活动 | B55: 569 | C55: 1,386 | D55: 1,386 | E55: 100.0 | F55: 367.63
A56: 统计抽样调查 | B56: 192 | C56: 207 | D56: 201 | E56: 97.1 | F56: 168.9
A57: 事业运行 | B57: 647 | C57: 658 | D57: 658 | E57: 100.0 | F57: 99.24
A58: 其他统计信息事务支出 | B58: 46 | C58: 65 | D58: 65 | E58: 100.0 | F58: 232.14
A59: 财政事务 | B59: 8,181 | C59: 8,348 | D59: 8,527 | E59: 102.1 | F59: 79.15
A60: 行政运行 | B60: 4,743 | C60: 4,321 | D60: 4,320 | E60: 100.0 | F60: 93.72
A61: 一般行政管理事务 | B61: 992 | C61: 1,405 | D61: 1,585 | E61: 112.8 | F61: 52.67
A62: 机关服务 | B62: 0 | C62: 0 | D62: 0 | F62: 0
A63: 预算改革业务 | B63: 0 | C63: 0 | D63: 0 | F63: 0
A64: 财政国库业务 | B64: 12 | C64: 11 | D64: 11 | E64: 100.0 | F64: 12.79
A65: 财政监察 | B65: 0 | C65: 11 | D65: 11 | E65: 100.0 | F65: 0
A66: 信息化建设 | B66: 147 | C66: 316 | D66: 316 | E66: 100.0 | F66: 83.37
A67: 财政委托业务支出 | B67: 347 | C67: 557 | D67: 557 | E67: 100.0 | F67: 93.45
A68: 事业运行 | B68: 1,910 | C68: 1,675 | D68: 1,675 | E68: 100.0 | F68: 93.62
A69: 其他财政事务支出 | B69: 30 | C69: 52 | D69: 52 | E69: 100.0 | F69: 17.1
A70: 税收事务 | B70: 4,053 | C70: 5,647 | D70: 5,647 | E70: 100.0 | F70: 116.02
A71: 行政运行 | B71: 3,753 | C71: 4,405 | D71: 4,405 | E71: 100.0 | F71: 115.04
A72: 一般行政管理事务 | B72: 0 | C72: 0 | D72: 0 | F72: 0
A73: 机关服务 | B73: 0 | C73: 0 | D73: 0 | F73: 0
A74: 税务办案 | B74: 0 | C74: 0 | D74: 0 | F74: 0
A75: 发票管理及税务登记 | B75: 0 | C75: 0 | D75: 0 | F75: 0
A76: 代扣代收代征税款手续费 | B76: 0 | C76: 0 | D76: 0 | F76: 0
A77: 税务宣传 | B77: 0 | C77: 0 | D77: 0 | F77: 0
A78: 协税护税 | B78: 0 | C78: 0 | D78: 0 | F78: 0
A79: 信息化建设 | B79: 0 | C79: 0 | D79: 0 | F79: 0
A80: 事业运行 | B80: 0 | C80: 0 | D80: 0 | F80: 0
A81: 其他税收事务支出 | B81: 300 | C81: 1,242 | D81: 1,242 | E81: 100.0 | F81: 126.21
A82: 审计事务 | B82: 2,687 | C82: 2,735 | D82: 2,735 | E82: 100.0 | F82: 107.42
A83: 行政运行 | B83: 2,148 | C83: 1,908 | D83: 1,908 | E83: 100.0 | F83: 101.86
A84: 一般行政管理事务 | B84: 206 | C84: 411 | D84: 411 | E84: 100.0 | F84: 124.54
A85: 机关服务 | B85: 0 | C85: 0 | D85: 0 | F85: 0
A86: 审计业务 | B86: 250 | C86: 287 | D86: 287 | E86: 100.0 | F86: 121.09
A87: 审计管理 | B87: 0 | C87: 0 | D87: 0 | F87: 0
A88: 信息化建设 | B88: 0 | C88: 5 | D88: 5 | E88: 100.0 | F88: 125
A89: 事业运行 | B89: 83 | C89: 124 | D89: 124 | E89: 100.0 | F89: 121.56
A90: 其他审计事务支出 | B90: 0 | C90: 0 | D90: 0 | F90: 0
A91: 海关事务 | B91: 41 | C91: 51 | D91: 90 | E91: 176.5 | F91: 157.89
A92: 行政运行 | B92: 0 | C92: 0 | D92: 0 | F92: 0
A93: 一般行政管理事务 | B93: 41 | C93: 50 | D93: 50 | E93: 100.0 | F93: 87.71
A94: 机关服务 | B94: 0 | C94: 0 | D94: 0 | F94: 0
A95: 缉私办案 | B95: 0 | C95: 0 | D95: 0 | F95: 0
A96: 口岸管理 | B96: 0 | C96: 0 | D96: 0 | F96: 0
A97: 信息化建设 | B97: 0 | C97: 0 | D97: 0 | F97: 0
A98: 海关关务 | B98: 0 | C98: 0 | D98: 0 | F98: 0
A99: 关税征管 | B99: 0 | C99: 0 | D99: 0 | F99: 0
A100: 海关监管 | B100: 0 | C100: 0 | D100: 0 | F100: 0
A101: 检验检疫 | B101: 0 | C101: 1 | D101: 0 | F101: 0
A102: 事业运行 | B102: 0 | C102: 0 | D102: 0 | F102: 0
A103: 其他海关事务支出 | B103: 0 | C103: 0 | D103: 40 | F103: 0
A104: 人力资源事务 | B104: 8,266 | C104: 6,770 | D104: 6,764 | E104: 99.9 | F104: 72.78
A105: 行政运行 | B105: 2,327 | C105: 2,172 | D105: 2,151 | E105: 99.0 | F105: 94.34
A106: 一般行政管理事务 | B106: 386 | C106: 481 | D106: 481 | E106: 100.0 | F106: 110.82
A107: 机关服务 | B107: 228 | C107: 232 | D107: 232 | E107: 100.0 | F107: 98.72
A108: 政府特殊津贴 | B108: 0 | C108: 0 | D108: 0 | F108: 0
A109: 资助留学回国人员 | B109: 0 | C109: 0 | D109: 0 | F109: 0
A110: 博士后日常经费 | B110: 0 | C110: 0 | D110: 0 | F110: 0
A111: 引进人才费用 | B111: 4,000 | C111: 0 | D111: 0 | F111: 0
A112: 事业运行 | B112: 1,016 | C112: 982 | D112: 976 | E112: 99.4 | F112: 76.19
A113: 其他人力资源事务支出 | B113: 309 | C113: 2,903 | D113: 2,924 | E113: 100.7 | F113: 58.33
A114: 纪检监察事务 | B114: 6,518 | C114: 7,258 | D114: 7,253 | E114: 99.9 | F114: 111.87
A115: 行政运行 | B115: 4,664 | C115: 4,368 | D115: 4,365 | E115: 99.9 | F115: 120.24
A116: 一般行政管理事务 | B116: 987 | C116: 988 | D116: 972 | E116: 98.4 | F116: 48.57
A117: 机关服务 | B117: 0 | C117: 1 | D117: 0 | E117: 0.0 | F117: 0
A118: 大案要案查处 | B118: 100 | C118: 185 | D118: 185 | E118: 100.0 | F118: 0
A119: 派驻派出机构 | B119: 7 | C119: 7 | D119: 7 | E119: 100.0 | F119: 0
A120: 巡视工作 | B120: 0 | C120: 246 | D120: 245 | E120: 99.6 | F120: 0
A121: 事业运行 | B121: 570 | C121: 530 | D121: 530 | E121: 100.0 | F121: 111.57
A122: 其他纪检监察事务支出 | B122: 190 | C122: 933 | D122: 949 | E122: 101.7 | F122: 251.72
A123: 商贸事务 | B123: 5,568 | C123: 6,060 | D123: 6,059 | E123: 100.0 | F123: 78.52
A124: 行政运行 | B124: 3,803 | C124: 3,341 | D124: 3,342 | E124: 100.0 | F124: 80.39
A125: 一般行政管理事务 | B125: 58 | C125: 82 | D125: 82 | E125: 100.0 | F125: 26.53
A126: 机关服务 | B126: 0 | C126: 0 | D126: 0 | F126: 0
A127: 对外贸易管理 | B127: 0 | C127: 0 | D127: 0 | F127: 0
A128: 国际经济合作 | B128: 0 | C128: 0 | D128: 0 | F128: 0
A129: 外资管理 | B129: 0 | C129: 0 | D129: 0 | F129: 0
A130: 国内贸易管理 | B130: 0 | C130: 0 | D130: 0 | F130: 0
A131: 招商引资 | B131: 130 | C131: 730 | D131: 742 | E131: 101.6 | F131: 100
A132: 事业运行 | B132: 1,499 | C132: 1,634 | D132: 1,621 | E132: 99.2 | F132: 110.42
A133: 其他商贸事务支出 | B133: 78 | C133: 273 | D133: 272 | E133: 99.6 | F133: 26.15
A134: 知识产权事务 | B134: 0 | C134: 321 | D134: 321 | E134: 100.0 | F134: 198.14
A135: 行政运行 | B135: 0 | C135: 0 | D135: 0 | F135: 0
A136: 一般行政管理事务 | B136: 0 | C136: 0 | D136: 0 | F136: 0
A137: 机关服务 | B137: 0 | C137: 0 | D137: 0 | F137: 0
A138: 专利审批 | B138: 0 | C138: 0 | D138: 0 | F138: 0
A139: 国家知识产权战略 | B139: 0 | C139: 0 | D139: 0 | F139: 0
A140: 专利试点和产业化推进 | B140: 0 | C140: 158 | D140: 158 | E140: 100.0 | F140: 124.4
A141: 国际组织专项活动 | B141: 0 | C141: 0 | D141: 0 | F141: 0
A142: 知识产权宏观管理 | B142: 0 | C142: 0 | D142: 0 | F142: 0
A143: 商标管理 | B143: 0 | C143: 0 | D143: 0 | F143: 0
A144: 原产地地理标志管理 | B144: 0 | C144: 0 | D144: 0 | F144: 0
A145: 事业运行 | B145: 0 | C145: 0 | D145: 0 | F145: 0
A146: 其他知识产权事务支出 | B146: 0 | C146: 163 | D146: 163 | E146: 100.0 | F146: 562.06
A147: 民族事务 | B147: 1,603 | C147: 2,518 | D147: 2,516 | E147: 99.9 | F147: 96.58
A148: 行政运行 | B148: 948 | C148: 733 | D148: 732 | E148: 99.9 | F148: 96.18
A149: 一般行政管理事务 | B149: 24 | C149: 40 | D149: 40 | E149: 100.0 | F149: 285.71
A150: 机关服务 | B150: 0 | C150: 0 | D150: 0 | F150: 0
A151: 民族工作专项 | B151: 313 | C151: 1,136 | D151: 1,136 | E151: 100.0 | F151: 86.12
A152: 事业运行 | B152: 219 | C152: 206 | D152: 206 | E152: 100.0 | F152: 89.56
A153: 其他民族事务支出 | B153: 99 | C153: 403 | D153: 402 | E153: 99.8 | F153: 143.06
A154: 港澳台事务 | B154: 0 | C154: 0 | D154: 0 | F154: 0
A155: 行政运行 | B155: 0 | C155: 0 | D155: 0 | F155: 0
A156: 一般行政管理事务 | B156: 0 | C156: 0 | D156: 0 | F156: 0
A157: 机关服务 | B157: 0 | C157: 0 | D157: 0 | F157: 0
A158: 港澳事务 | B158: 0 | C158: 0 | D158: 0 | F158: 0
A159: 台湾事务 | B159: 0 | C159: 0 | D159: 0 | F159: 0
A160: 事业运行 | B160: 0 | C160: 0 | D160: 0 | F160: 0
A161: 其他港澳台事务支出 | B161: 0 | C161: 0 | D161: 0 | F161: 0
A162: 档案事务 | B162: 1,331 | C162: 2,392 | D162: 2,391 | E162: 100.0 | F162: 198.91
A163: 行政运行 | B163: 1,056 | C163: 978 | D163: 977 | E163: 99.9 | F163: 104.94
A164: 一般行政管理事务 | B164: 131 | C164: 47 | D164: 47 | E164: 100.0 | F164: 65.27
A165: 机关服务 | B165: 0 | C165: 7 | D165: 7 | F165: 0
A166: 档案馆 | B166: 114 | C166: 580 | D166: 580 | E166: 100.0 | F166: 291.45
A167: 其他档案事务支出 | B167: 30 | C167: 780 | D167: 780 | E167: 100.0 | F167: 0
A168: 民主党派及工商联事务 | B168: 357 | C168: 628 | D168: 634 | E168: 101.0 | F168: 163.4
A169: 行政运行 | B169: 231 | C169: 311 | D169: 312 | E169: 100.3 | F169: 136.24
A170: 一般行政管理事务 | B170: 120 | C170: 309 | D170: 314 | E170: 101.6 | F170: 197.48
A171: 机关服务 | B171: 0 | C171: 0 | D171: 0 | F171: 0
A172: 参政议政 | B172: 0 | C172: 0 | D172: 0 | F172: 0
A173: 事业运行 | B173: 0 | C173: 4 | D173: 4 | E173: 100.0 | F173: 0
A174: 其他民主党派及工商联事务支出 | B174: 6 | C174: 4 | D174: 4 | E174: 100.0 | F174: 0
A175: 群众团体事务 | B175: 3,890 | C175: 4,762 | D175: 4,762 | E175: 100.0 | F175: 105.7
A176: 行政运行 | B176: 2,268 | C176: 1,782 | D176: 1,783 | E176: 100.1 | F176: 97.8
A177: 一般行政管理事务 | B177: 609 | C177: 1,007 | D177: 1,006 | E177: 99.9 | F177: 95.71
A178: 机关服务 | B178: 0 | C178: 0 | D178: 0 | F178: 0
A179: 工会事务 | B179: 138 | C179: 367 | D179: 367 | E179: 100.0 | F179: 173.93
A180: 事业运行 | B180: 533 | C180: 582 | D180: 582 | E180: 100.0 | F180: 67.36
A181: 其他群众团体事务支出 | B181: 342 | C181: 1,024 | D181: 1,024 | E181: 100.0 | F181: 184.17
A182: 党委办公厅(室)及相关机构事务 | B182: 11,578 | C182: 10,479 | D182: 10,474 | E182: 100.0 | F182: 98.15
A183: 行政运行 | B183: 8,670 | C183: 7,219 | D183: 7,214 | E183: 99.9 | F183: 90.99
A184: 一般行政管理事务 | B184: 1,475 | C184: 2,385 | D184: 2,385 | E184: 100.0 | F184: 105.57
A185: 机关服务 | B185: 0 | C185: 0 | D185: 0 | F185: 0
A186: 专项业务 | B186: 36 | C186: 0 | D186: 0 | F186: 0
A187: 事业运行 | B187: 1,012 | C187: 453 | D187: 453 | E187: 100.0 | F187: 93.78
A188: 其他党委办公厅(室)及相关机构事务支出 | B188: 385 | C188: 422 | D188: 422 | E188: 100.0 | F188: 0
A189: 组织事务 | B189: 5,711 | C189: 5,547 | D189: 5,552 | E189: 100.1 | F189: 99.8
A190: 行政运行 | B190: 2,881 | C190: 2,774 | D190: 2,768 | E190: 99.8 | F190: 115.42
A191: 一般行政管理事务 | B191: 1,744 | C191: 1,309 | D191: 1,319 | E191: 100.8 | F191: 57.74
A192: 机关服务 | B192: 0 | C192: 0 | D192: 0 | F192: 0
A193: 公务员事务 | B193: 0 | C193: 0 | D193: 0 | F193: 0
A194: 事业运行 | B194: 377 | C194: 430 | D194: 431 | E194: 100.2 | F194: 141.77
A195: 其他组织事务支出 | B195: 709 | C195: 1,034 | D195: 1,034 | E195: 100.0 | F195: 179.2
A196: 宣传事务 | B196: 3,838 | C196: 5,367 | D196: 5,218 | E196: 97.2 | F196: 125.28
A197: 行政运行 | B197: 1,691 | C197: 1,400 | D197: 1,400 | E197: 100.0 | F197: 104.55
A198: 一般行政管理事务 | B198: 1,253 | C198: 1,474 | D198: 1,474 | E198: 100.0 | F198: 130.78
A199: 机关服务 | B199: 0 | C199: 0 | D199: 0 | F199: 0
A200: 宣传管理 | B200: 0 | C200: 296 | D200: 296 | E200: 100.0 | F200: 0
... 1147 more rows

Sheet 3.全市一般公用预算收支决算平衡表
A1: 2020年攀枝花市一般公共预算收支决算平衡表
A2: 单位：万元
A3: 项 目 | B3: 决 算 数 | C3: 项 目 | D3: 决 算 数
A4: 一般公共预算收入 | B4: 682,507 | C4: 一般公共预算支出 | D4: 1,598,093
A5: 上级补助收入 | B5: 759,818 | C5: 补助下级支出 | D5: 0
A6: 返还性收入 | B6: 28,611 | C6: 返还性支出 | D6: 0
A7: 所得税基数返还收入 | B7: 9,437 | C7: 所得税基数返还支出 | D7: 0
A8: 成品油税费改革税收返还收入 | B8: 21,087 | C8: 成品油税费改革税收返还支出 | D8: 0
A9: 增值税税收返还收入 | B9: 38,251 | C9: 增值税税收返还支出 | D9: 0
A10: 消费税税收返还收入 | B10: 966 | C10: 消费税税收返还支出 | D10: 0
A11: 增值税“五五分享”税收返还收入 | B11: -28,149 | C11: 增值税“五五分享”税收返还支出 | D11: 0
A12: 其他返还性收入 | B12: -12,981 | C12: 其他返还性支出 | D12: 0
A13: 一般性转移支付收入 | B13: 617,334 | C13: 一般性转移支付支出 | D13: 0
A14: 体制补助收入 | B14: 0 | C14: 体制补助支出 | D14: 0
A15: 均衡性转移支付收入 | B15: 131,921 | C15: 均衡性转移支付支出 | D15: 0
A16: 县级基本财力保障机制奖补资金收入 | B16: 54,238 | C16: 县级基本财力保障机制奖补资金支出 | D16: 0
A17: 结算补助收入 | B17: 56,102 | C17: 结算补助支出 | D17: 0
A18: 资源枯竭型城市转移支付补助收入 | B18: 7,994 | C18: 资源枯竭型城市转移支付补助支出 | D18: 0
A19: 企业事业单位划转补助收入 | B19: 22,453 | C19: 企业事业单位划转补助支出 | D19: 0
A20: 产粮(油)大县奖励资金收入 | B20: 0 | C20: 产粮(油)大县奖励资金支出 | D20: 0
A21: 重点生态功能区转移支付收入 | B21: 19,621 | C21: 重点生态功能区转移支付支出 | D21: 0
A22: 固定数额补助收入 | B22: 54,582 | C22: 固定数额补助支出 | D22: 0
A23: 革命老区转移支付收入 | B23: 0 | C23: 革命老区转移支付支出 | D23: 0
A24: 民族地区转移支付收入 | B24: 0 | C24: 民族地区转移支付支出 | D24: 0
A25: 边境地区转移支付收入 | B25: 0 | C25: 边境地区转移支付支出 | D25: 0
A26: 贫困地区转移支付收入 | B26: 15,258 | C26: 贫困地区转移支付支出 | D26: 0
A27: 一般公共服务共同财政事权转移支付收入 | B27: 0 | C27: 一般公共服务共同财政事权转移支付支出 | D27: 0
A28: 外交共同财政事权转移支付收入 | B28: 0 | C28: 外交共同财政事权转移支付支出 | D28: 0
A29: 国防共同财政事权转移支付收入 | B29: 0 | C29: 国防共同财政事权转移支付支出 | D29: 0
A30: 公共安全共同财政事权转移支付收入 | B30: 8,630 | C30: 公共安全共同财政事权转移支付支出 | D30: 0
A31: 教育共同财政事权转移支付收入 | B31: 43,992 | C31: 教育共同财政事权转移支付支出 | D31: 0
A32: 科学技术共同财政事权转移支付收入 | B32: 330 | C32: 科学技术共同财政事权转移支付支出 | D32: 0
A33: 文化旅游体育与传媒共同财政事权转移支付收入 | B33: 2,904 | C33: 文化旅游体育与传媒共同财政事权转移支付支出 | D33: 0
A34: 社会保障和就业共同财政事权转移支付收入 | B34: 32,983 | C34: 社会保障和就业共同财政事权转移支付支出 | D34: 0
A35: 医疗卫生共同财政事权转移支付收入 | B35: 52,382 | C35: 医疗卫生共同财政事权转移支付支出 | D35: 0
A36: 节能环保共同财政事权转移支付收入 | B36: 2,667 | C36: 节能环保共同财政事权转移支付支出 | D36: 0
A37: 城乡社区共同财政事权转移支付收入 | B37: 0 | C37: 城乡社区共同财政事权转移支付支出 | D37: 0
A38: 农林水共同财政事权转移支付收入 | B38: 78,841 | C38: 农林水共同财政事权转移支付支出 | D38: 0
A39: 交通运输共同财政事权转移支付收入 | B39: 11,812 | C39: 交通运输共同财政事权转移支付支出 | D39: 0
A40: 资源勘探信息等共同财政事权转移支付收入 | B40: 0 | C40: 资源勘探信息等共同财政事权转移支付支出 | D40: 0
A41: 商业服务业等共同财政事权转移支付收入 | B41: 0 | C41: 商业服务业等共同财政事权转移支付支出 | D41: 0
A42: 金融共同财政事权转移支付收入 | B42: -17 | C42: 金融共同财政事权转移支付支出 | D42: 0
A43: 自然资源海洋气象等共同财政事权转移支付收入 | B43: 0 | C43: 自然资源海洋气象等共同财政事权转移支付支出 | D43: 0
A44: 住房保障共同财政事权转移支付收入 | B44: 9,887 | C44: 住房保障共同财政事权转移支付支出 | D44: 0
A45: 粮油物资储备共同财政事权转移支付收入 | B45: 0 | C45: 粮油物资储备共同财政事权转移支付支出 | D45: 0
A46: 灾害防治及应急管理共同财政事权转移支付收入 | B46: 1,346 | C46: 灾害防治及应急管理共同财政事权转移支付支出 | D46: 0
A47: 其他共同财政事权转移支付收入 | B47: 0 | C47: 其他共同财政事权转移支付支出 | D47: 0
A48: 其他一般性转移支付收入 | B48: 9,408 | C48: 其他一般性转移支付支出 | D48: 0
A49: 专项转移支付收入 | B49: 113,873 | C49: 专项转移支付支出 | D49: 0
A50: 下级上解收入 | B50: 0 | C50: 上解上级支出 | D50: 81,011
A51: 体制上解收入 | B51: 0 | C51: 体制上解支出 | D51: 11
A52: 专项上解收入 | B52: 0 | C52: 专项上解支出 | D52: 81,000
A53: 上年结余 | B53: 53,161
A54: 调入资金 | B54: 238,107 | C54: 调出资金 | D54: 0
A55: 从政府性基金预算调入 | B55: 68,500
A56: 从国有资本经营预算调入 | B56: 3,145
A57: 从其他资金调入 | B57: 166,462
A58: 债务收入 | B58: 0 | C58: 债务还本支出 | D58: 255,527
A59: 地方政府债务收入 | B59: 0 | C59: 地方政府一般债务还本支出 | D59: 255,527
A60: 一般债务收入 | B60: 0 | C60: 地方政府一般债券还本支出 | D60: 250,340
A61: 地方政府一般债券收入 | B61: 0 | C61: 地方政府向外国政府借款还本支出 | D61: 1,660
A62: 地方政府向外国政府借款收入 | B62: 0 | C62: 地方政府向国际组织借款还本支出 | D62: 3,527
A63: 地方政府向国际组织借款收入 | B63: 0 | C63: 地方政府其他一般债务还本支出 | D63: 0
A64: 地方政府其他一般债务收入 | B64: 0
A65: 债务转贷收入 | B65: 252,866 | C65: 债务转贷支出 | D65: 0
A66: 地方政府一般债务转贷收入 | B66: 252,866 | C66: 地方政府一般债券转贷支出 | D66: 0
A67: 地方政府一般债券转贷收入 | B67: 252,866 | C67: 地方政府向外国政府借款转贷支出 | D67: 0
A68: 地方政府向外国政府借款转贷收入 | B68: 0 | C68: 地方政府向国际组织借款转贷支出 | D68: 0
A69: 地方政府向国际组织借款转贷收入 | B69: 0 | C69: 地方政府其他一般债务转贷支出 | D69: 0
A70: 地方政府其他一般债务转贷收入 | B70: 0
A71: 动用预算稳定调节基金 | B71: 11,137 | C71: 安排预算稳定调节基金 | D71: 7,739
A72: 接受其他地区援助收入 | B72: 0 | C72: 援助其他地区支出 | D72: 3,148
C73: 年终结余 | D73: 52,078
C74: 减:结转下年的支出 | D74: 52,078
C75: 净结余 | D75: 0
A76: 收 入 总 计 | B76: 1,997,596 | C76: 支 出 总 计 | D76: 1,997,596

Sheet 4.全市一般公共预算经济分类科目支出决算
A1: 2020年攀枝花市一般公共预算经济分类科目支出决算表
B2: 单位:万元
A3: 预算科目 | B3: 决算数
A4: 机关工资福利支出 | B4: 257,341
A5: 工资奖金津补贴 | B5: 174,052
A6: 社会保障缴费 | B6: 36,869
A7: 住房公积金 | B7: 21,632
A8: 其他工资福利支出 | B8: 24,788
A9: 机关商品和服务支出 | B9: 414,036
A10: 办公经费 | B10: 30,702
A11: 会议费 | B11: 1,136
A12: 培训费 | B12: 634
A13: 专用材料购置费 | B13: 1,357
A14: 委托业务费 | B14: 35,085
A15: 公务接待费 | B15: 1,132
A16: 因公出国(境)费用
A17: 公务用车运行维护费 | B17: 3,647
A18: 维修(护)费 | B18: 1,997
A19: 其他商品和服务支出 | B19: 338,346
A20: 机关资本性支出(一) | B20: 176,271
A21: 房屋建筑物购建 | B21: 3,808
A22: 基础设施建设 | B22: 53,125
A23: 公务用车购置 | B23: 901
A24: 土地征迁补偿和安置支出 | B24: 2,245
A25: 设备购置 | B25: 2,159
A26: 大型修缮 | B26: 634
A27: 其他资本性支出 | B27: 113,399
A28: 机关资本性支出(二) | B28: 22,883
A29: 房屋建筑物购建 | B29: 2,905
A30: 基础设施建设 | B30: 3,755
A31: 公务用车购置 | B31: 47
A32: 设备购置 | B32: 47
A33: 大型修缮 | B33: 111
A34: 其他资本性支出 | B34: 16,018
A35: 对事业单位经常性补助 | B35: 467,279
A36: 工资福利支出 | B36: 292,892
A37: 商品和服务支出 | B37: 160,837
A38: 其他对事业单位补助 | B38: 13,550
A39: 对事业单位资本性补助 | B39: 13,882
A40: 资本性支出(一) | B40: 7,967
A41: 资本性支出(二) | B41: 5,915
A42: 对企业补助 | B42: 22,646
A43: 费用补贴 | B43: 3,601
A44: 利息补贴 | B44: 855
A45: 其他对企业补助 | B45: 18,190
A46: 对企业资本性支出 | B46: 4,412
A47: 对企业资本性支出(一)
A48: 对企业资本性支出(二) | B48: 4,412
A49: 对个人和家庭的补助 | B49: 102,634
A50: 社会福利和救助 | B50: 40,158
A51: 助学金 | B51: 4,835
A52: 个人农业生产补贴 | B52: 2,478
A53: 离退休费 | B53: 25,769
A54: 其他对个人和家庭补助 | B54: 29,394
A55: 对社会保障基金补助 | B55: 43,280
A56: 对社会保险基金补助 | B56: 43,280
A57: 补充全国社会保障基金
A58: 债务利息及费用支出 | B58: 54,510
A59: 国内债务付息 | B59: 54,115
A60: 国外债务付息 | B60: 113
A61: 国内债务发行费用 | B61: 282
A62: 国外债务发行费用
A63: 其他支出 | B63: 18,919
A64: 赠与
A65: 国家赔偿费用支出
A66: 对民间非营利组织和群众性自治组织补贴 | B66: 1,266
A67: 其他支出 | B67: 17,653
A68: 一般公共预算支出 | B68: 1,598,093

Sheet 5.市本级一般公共预算收入决算表
A1: 2020年攀枝花市市本级地方一般公共预算收入决算表
E2: 单位：万元，%
A3: 预算科目 | B3: 年初预算数 | C3: 变动预算数 | D3: 决算数 | E3: 为预算 | F3: 为上年决算
A4: 一、税收收入 | B4: =SUM(B5:B21) -> 188,000 | C4: =SUM(C5:C21) -> 188,000 | D4: =SUM(D5:D21) -> 188,232 | E4: =D4/C4*100 -> 100.1 | F4: 100.8
A5: 增值税 | B5: 89,514 | C5: 89,514 | D5: 74,996 | E5: =D5/C5*100 -> 83.8 | F5: 92.2
A6: 消费税
A7: 企业所得税 | B7: 15,287 | C7: 15,287 | D7: 17,523 | E7: 114.6 | F7: 113.2
A8: 企业所得税退税
A9: 个人所得税(款) | B9: 3,163 | C9: 3,163 | D9: 2,976 | E9: 94.1 | F9: 93.1
A10: 资源税 | B10: 10,624 | C10: 10,624 | D10: 17,199 | E10: 161.9 | F10: 173.7
A11: 城市维护建设税 | B11: 20,449 | C11: 20,449 | D11: 16,855 | E11: 82.4 | F11: 91.4
A12: 房产税 | B12: 6,975 | C12: 6,975 | D12: 6,910 | E12: 99.1 | F12: 72.7
A13: 印花税 | B13: 6,699 | C13: 6,699 | D13: 6,709 | E13: 100.1 | F13: 95.7
A14: 城镇土地使用税 | B14: 14,862 | C14: 14,862 | D14: 15,778 | E14: 106.2 | F14: 109.1
A15: 土地增值税 | B15: 7,281 | C15: 7,281 | D15: 12,761 | E15: 175.3 | F15: 101.6
A16: 车船税(款) | B16: 1,882 | C16: 1,882 | D16: 2,079 | E16: 110.5 | F16: 104.1
A17: 耕地占用税(款) | B17: 1,150 | C17: 1,150 | D17: 3,927 | F17: 271.2
A18: 契税(款) | B18: 6,386 | C18: 6,386 | D18: 7,856 | E18: 123.0 | F18: 102.9
A19: 烟叶税(款)
A20: 环境保护税(款) | B20: 3,728 | C20: 3,728 | D20: 2,623 | E20: 70.4 | F20: 70.9
A21: 其他税收收入 | D21: 40 | F21: 1,333.3
A22: 二、非税收入 | B22: =SUM(B23:B28) -> 85,000 | C22: =SUM(C23:C28) -> 109,000 | D22: =SUM(D23:D28) -> 109,016 | E22: 100.0 | F22: 128.2
A23: 专项收入 | B23: 8,900 | C23: 8,900 | D23: 11,298 | E23: 126.9 | F23: 96.0
A24: 行政事业性收费收入 | B24: 16,000 | C24: 16,000 | D24: 15,716 | E24: 98.2 | F24: 98.1
A25: 罚没收入 | B25: 8,000 | C25: 8,000 | D25: 19,179 | E25: 239.7 | F25: 254.8
A26: 国有资源(资产)有偿使用收入 | B26: 38,000 | C26: 62,000 | D26: 45,555 | E26: 73.5 | F26: 157.3
A27: 政府住房基金收入 | B27: 6,000 | C27: 6,000 | D27: 6,689 | E27: 111.5 | F27: 52.4
A28: 其他收入(款) | B28: 8,100 | C28: 8,100 | D28: 10,579 | E28: 130.6 | F28: 132.4
A29: 一般公共预算收入 | B29: =B22+B4 -> 273,000 | C29: =C22+C4 -> 297,000 | D29: =D22+D4 -> 297,248 | E29: 100.1 | F29: 109.4

Sheet 6.市本级一般公共预算支出决算表
A1: 2020年攀枝花市市本级地方一般公共预算支出决算表
D2: 单位：万元 %
A3: 预算科目 | B3: 年初预算数 | C3: 变动预算数 | D3: 决算数 | E3: 为预算 | F3: 为上年决算
A4: 一般公共服务支出 | B4: 50,547 | C4: 53,542 | D4: 53,144 | E4: =D4/C4*100 -> 99.3 | F4: 93.4
A5: 人大事务 | B5: 1,716 | C5: 1,605 | D5: 1,604 | E5: =D5/C5*100 -> 99.9 | F5: 91.0
A6: 行政运行 | B6: 1,218 | C6: 1,117 | D6: 1,116 | E6: 99.9 | F6: 95.2
A7: 一般行政管理事务 | B7: 196 | C7: 221 | D7: 221 | E7: 100.0 | F7: 78.1
A8: 机关服务 | B8: 0 | C8: 0 | D8: 0 | F8: 0.0
A9: 人大会议 | B9: 100 | C9: 100 | D9: 100 | E9: 100.0 | F9: 69.9
A10: 人大立法 | B10: 33 | C10: 31 | D10: 31 | E10: 100.0 | F10: 119.2
A11: 人大监督 | B11: 27 | C11: 27 | D11: 27 | E11: 100.0 | F11: 112.5
A12: 人大代表履职能力提升 | B12: 0 | C12: 0 | D12: 0 | F12: 0.0
A13: 代表工作 | B13: 100 | C13: 68 | D13: 68 | E13: 100.0 | F13: 89.5
A14: 人大信访工作 | B14: 0 | C14: 0 | D14: 0 | F14: 0.0
A15: 事业运行 | B15: 42 | C15: 41 | D15: 41 | E15: 100.0 | F15: 107.9
A16: 其他人大事务支出 | B16: 0 | C16: 0 | D16: 0 | F16: 0.0
A17: 政协事务 | B17: 1,573 | C17: 1,744 | D17: 1,743 | E17: 99.9 | F17: 122.1
A18: 行政运行 | B18: 1,178 | C18: 1,016 | D18: 1,015 | E18: 99.9 | F18: 106.6
A19: 一般行政管理事务 | B19: 132 | C19: 469 | D19: 469 | E19: 100.0 | F19: 191.4
A20: 机关服务 | B20: 0 | C20: 0 | D20: 0 | F20: 0.0
A21: 政协会议 | B21: 104 | C21: 104 | D21: 104 | E21: 100.0 | F21: 100.0
A22: 委员视察 | B22: 113 | C22: 113 | D22: 113 | E22: 100.0 | F22: 104.6
A23: 参政议政 | B23: 10 | C23: 10 | D23: 10 | E23: 100.0 | F23: 90.9
A24: 事业运行 | B24: 36 | C24: 32 | D24: 32 | E24: 100.0 | F24: 400.0
A25: 其他政协事务支出 | B25: 0 | C25: 0 | D25: 0 | F25: 0.0
A26: 政府办公厅(室)及相关机构事务 | B26: 8,855 | C26: 10,258 | D26: 10,325 | E26: 100.7 | F26: 110.9
A27: 行政运行 | B27: 5,332 | C27: 4,577 | D27: 4,682 | E27: 102.3 | F27: 93.5
A28: 一般行政管理事务 | B28: 1,719 | C28: 3,802 | D28: 3,802 | E28: 100.0 | F28: 176.7
A29: 机关服务 | B29: 239 | C29: 233 | D29: 233 | E29: 100.0 | F29: 209.9
A30: 专项服务 | B30: 0 | C30: 0 | D30: 0 | F30: 0.0
A31: 专项业务活动 | B31: 0 | C31: 0 | D31: 0 | F31: 0.0
A32: 政务公开审批 | B32: 0 | C32: 0 | D32: 0 | F32: 0.0
A33: 信访事务 | B33: 47 | C33: 62 | D33: 51 | E33: 82.3 | F33: 68.0
A34: 参事事务 | B34: 0 | C34: 0 | D34: 0 | F34: 0.0
A35: 事业运行 | B35: 1,152 | C35: 1,221 | D35: 1,209 | E35: 99.0 | F35: 123.6
A36: 其他政府办公厅(室)及相关机构事务支出 | B36: 366 | C36: 363 | D36: 348 | E36: 95.9 | F36: 35.2
A37: 发展与改革事务 | B37: 1,838 | C37: 2,244 | D37: 1,802 | E37: 80.3 | F37: 97.5
A38: 行政运行 | B38: 1,610 | C38: 1,434 | D38: 1,383 | E38: 96.4 | F38: 100.1
A39: 一般行政管理事务 | B39: 41 | C39: 40 | D39: 40 | E39: 100.0 | F39: 56.3
A40: 机关服务 | B40: 0 | C40: 0 | D40: 0 | F40: 0.0
A41: 战略规划与实施 | B41: 0 | C41: 0 | D41: 0 | F41: 0.0
A42: 日常经济运行调节 | B42: 0 | C42: 0 | D42: 0 | F42: 0.0
A43: 社会事业发展规划 | B43: 0 | C43: 0 | D43: 0 | F43: 0.0
A44: 经济体制改革研究 | B44: 0 | C44: 0 | D44: 0 | F44: 0.0
A45: 物价管理 | B45: 5 | C45: 5 | D45: 5 | E45: 100.0 | F45: 50.0
A46: 事业运行 | B46: 172 | C46: 176 | D46: 175 | E46: 99.4 | F46: 110.1
A47: 其他发展与改革事务支出 | B47: 10 | C47: 589 | D47: 199 | E47: 33.8 | F47: 272.6
A48: 统计信息事务 | B48: 1,235 | C48: 1,039 | D48: 1,039 | E48: 100.0 | F48: 104.2
A49: 行政运行 | B49: 879 | C49: 755 | D49: 755 | E49: 100.0 | F49: 98.8
A50: 一般行政管理事务 | B50: 60 | C50: 59 | D50: 59 | E50: 100.0 | F50: 105.4
A51: 机关服务 | B51: 0 | C51: 0 | D51: 0 | F51: 0.0
A52: 信息事务 | B52: 0 | C52: 0 | D52: 0 | F52: 0.0
A53: 专项统计业务 | B53: 0 | C53: 0 | D53: 0 | F53: 0.0
A54: 统计管理 | B54: 0 | C54: 0 | D54: 0 | F54: 0.0
A55: 专项普查活动 | B55: 120 | C55: 56 | D55: 56 | E55: 100.0 | F55: 373.3
A56: 统计抽样调查 | B56: 96 | C56: 83 | D56: 83 | E56: 100.0 | F56: 106.4
A57: 事业运行 | B57: 80 | C57: 86 | D57: 86 | E57: 100.0 | F57: 102.4
A58: 其他统计信息事务支出 | B58: 0 | C58: 0 | D58: 0 | F58: 0.0
A59: 财政事务 | B59: 2,412 | C59: 2,692 | D59: 2,872 | E59: 106.7 | F59: 57.9
A60: 行政运行 | B60: 2,104 | C60: 1,804 | D60: 1,804 | E60: 100.0 | F60: 93.8
A61: 一般行政管理事务 | B61: 62 | C61: 652 | D61: 832 | E61: 127.6 | F61: 31.6
A62: 机关服务 | B62: 0 | C62: 0 | D62: 0 | F62: 0.0
A63: 预算改革业务 | B63: 0 | C63: 0 | D63: 0 | F63: 0.0
A64: 财政国库业务 | B64: 0 | C64: 0 | D64: 0 | F64: 0.0
A65: 财政监察 | B65: 0 | C65: 7 | D65: 7 | E65: 100.0 | F65: 0.0
A66: 信息化建设 | B66: 27 | C66: 27 | D66: 27 | E66: 100.0 | F66: 64.3
A67: 财政委托业务支出 | B67: 0 | C67: 0 | D67: 0 | F67: 0.0
A68: 事业运行 | B68: 199 | C68: 202 | D68: 202 | E68: 100.0 | F68: 92.2
A69: 其他财政事务支出 | B69: 20 | C69: 0 | D69: 0 | F69: 0.0
A70: 税收事务 | B70: 1,048 | C70: 2,046 | D70: 2,046 | E70: =D70/C70*100 -> 100.0 | F70: 134.7
A71: 行政运行 | B71: 1,048 | C71: 2,046 | D71: 2,046 | E71: =D71/C71*100 -> 100.0 | F71: 139.8
A72: 一般行政管理事务 | B72: 0 | D72: 0 | F72: 0.0
A73: 机关服务 | B73: 0 | D73: 0 | F73: 0.0
A74: 税务办案 | B74: 0 | D74: 0 | F74: 0.0
A75: 发票管理及税务登记 | B75: 0 | D75: 0 | F75: 0.0
A76: 代扣代收代征税款手续费 | B76: 0 | D76: 0 | F76: 0.0
A77: 税务宣传 | B77: 0 | D77: 0 | F77: 0.0
A78: 协税护税 | B78: 0 | D78: 0 | F78: 0.0
A79: 信息化建设 | B79: 0 | D79: 0 | F79: 0.0
A80: 事业运行 | B80: 0 | D80: 0 | F80: 0.0
A81: 其他税收事务支出 | B81: 0 | D81: 0 | F81: 0.0
A82: 审计事务 | B82: 1,248 | C82: 1,340 | D82: 1,340 | E82: =D82/C82*100 -> 100.0 | F82: 110.6
A83: 行政运行 | B83: 1,122 | C83: 967 | D83: 967 | E83: =D83/C83*100 -> 100.0 | F83: 104.2
A84: 一般行政管理事务 | B84: 90 | C84: 333 | D84: 333 | E84: =D84/C84*100 -> 100.0 | F84: 133.2
A85: 机关服务 | B85: 0 | D85: 0 | F85: 0.0
A86: 审计业务 | B86: 0 | D86: 0 | F86: 0.0
A87: 审计管理 | B87: 0 | D87: 0 | F87: 0.0
A88: 信息化建设 | B88: 0 | D88: 0 | F88: 0.0
A89: 事业运行 | B89: 36 | C89: 40 | D89: 40 | E89: =D89/C89*100 -> 100.0 | F89: 117.6
A90: 其他审计事务支出 | B90: 0 | D90: 0 | F90: 0.0
A91: 海关事务 | B91: 41 | C91: 50 | D91: 90 | E91: =D91/C91*100 -> 180.0 | F91: 157.9
A92: 行政运行 | B92: 0 | D92: 0 | F92: 0.0
A93: 一般行政管理事务 | B93: 41 | C93: 50 | D93: 50 | E93: =D93/C93*100 -> 100.0 | F93: 87.7
A94: 机关服务 | B94: 0 | D94: 0 | F94: 0.0
A95: 缉私办案 | B95: 0 | D95: 0 | F95: 0.0
A96: 口岸管理 | B96: 0 | D96: 0 | F96: 0.0
A97: 信息化建设 | B97: 0 | D97: 0 | F97: 0.0
A98: 海关关务 | B98: 0 | D98: 0 | F98: 0.0
A99: 关税征管 | B99: 0 | D99: 0 | F99: 0.0
A100: 海关监管 | B100: 0 | D100: 0 | F100: 0.0
A101: 检验检疫 | B101: 0 | D101: 0 | F101: 0.0
A102: 事业运行 | B102: 0 | D102: 0 | F102: 0.0
A103: 其他海关事务支出 | B103: 0 | D103: 40 | F103: 0.0
A104: 人力资源事务 | B104: 5,779 | C104: 4,159 | D104: 4,153 | E104: =D104/C104*100 -> 99.9 | F104: 62.5
A105: 行政运行 | B105: 1,170 | C105: 968 | D105: 968 | E105: =D105/C105*100 -> 100.0 | F105: 88.7
A106: 一般行政管理事务 | B106: 0 | C106: 0 | D106: 0 | F106: 0.0
A107: 机关服务 | B107: 26 | C107: 26 | D107: 26 | E107: =D107/C107*100 -> 100.0 | F107: 100.0
A108: 政府特殊津贴 | B108: 0 | C108: 0 | D108: 0 | F108: 0.0
A109: 资助留学回国人员 | B109: 0 | C109: 0 | D109: 0 | F109: 0.0
A110: 博士后日常经费 | B110: 0 | C110: 0 | D110: 0 | F110: 0.0
A111: 引进人才费用 | B111: 4,000 | C111: 0 | D111: 0 | F111: 0.0
A112: 事业运行 | B112: 400 | C112: 402 | D112: 396 | E112: =D112/C112*100 -> 98.5 | F112: 59.7
A113: 其他人力资源事务支出 | B113: 183 | C113: 2,763 | D113: 2,763 | E113: =D113/C113*100 -> 100.0 | F113: 56.8
A114: 纪检监察事务 | B114: 2,567 | C114: 2,487 | D114: 2,486 | E114: =D114/C114*100 -> 100.0 | F114: 119.2
A115: 行政运行 | B115: 1,928 | C115: 1,564 | D115: 1,564 | E115: =D115/C115*100 -> 100.0 | F115: 119.3
A116: 一般行政管理事务 | B116: 270 | C116: 305 | D116: 305 | E116: =D116/C116*100 -> 100.0 | F116: 82.7
A117: 机关服务 | B117: 0 | C117: 0 | D117: 0 | F117: 0.0
A118: 大案要案查处 | B118: 100 | C118: 100 | D118: 100 | E118: =D118/C118*100 -> 100.0 | F118: 0.0
A119: 派驻派出机构 | B119: 7 | C119: 7 | D119: 7 | E119: 100.0 | F119: 0.0
A120: 巡视工作 | B120: 0 | C120: 246 | D120: 245 | E120: 99.6 | F120: 0.0
A121: 事业运行 | B121: 127 | C121: 130 | D121: 130 | E121: 100.0 | F121: 125.0
A122: 其他纪检监察事务支出 | B122: 135 | C122: 135 | D122: 135 | E122: 100.0 | F122: 44.9
A123: 商贸事务 | B123: 3,047 | C123: 2,641 | D123: 2,641 | E123: 100.0 | F123: 95.6
A124: 行政运行 | B124: 2,790 | C124: 2,306 | D124: 2,306 | E124: 100.0 | F124: 93.5
A125: 一般行政管理事务 | B125: 23 | C125: 56 | D125: 56 | E125: 100.0 | F125: 130.2
A126: 机关服务 | B126: 0 | C126: 0 | D126: 0 | F126: 0.0
A127: 对外贸易管理 | B127: 0 | C127: 0 | D127: 0 | F127: 0.0
A128: 国际经济合作 | B128: 0 | C128: 0 | D128: 0 | F128: 0.0
A129: 外资管理 | B129: 0 | C129: 0 | D129: 0 | F129: 0.0
A130: 国内贸易管理 | B130: 0 | C130: 0 | D130: 0 | F130: 0.0
A131: 招商引资 | B131: 0 | C131: 0 | D131: 0 | F131: 0.0
A132: 事业运行 | B132: 234 | C132: 241 | D132: 241 | E132: =D132/C132*100 -> 100.0 | F132: 110.6
A133: 其他商贸事务支出 | B133: 0 | C133: 38 | D133: 38 | E133: =D133/C133*100 -> 100.0 | F133: 0.0
A134: 知识产权事务 | B134: 0 | C134: 246 | D134: 246 | E134: =D134/C134*100 -> 100.0 | F134: 346.5
A135: 行政运行 | B135: 0 | C135: 0 | D135: 0 | F135: 0.0
A136: 一般行政管理事务 | B136: 0 | C136: 0 | D136: 0 | F136: 0.0
A137: 机关服务 | B137: 0 | C137: 0 | D137: 0 | F137: 0.0
A138: 专利审批 | B138: 0 | C138: 0 | D138: 0 | F138: 0.0
A139: 国家知识产权战略 | B139: 0 | C139: 0 | D139: 0 | F139: 0.0
A140: 专利试点和产业化推进 | B140: 0 | C140: 83 | D140: 83 | E140: =D140/C140*100 -> 100.0 | F140: 176.6
A141: 专利执法 | F141: 0.0
A142: 国际组织专项活动 | B142: 0 | C142: 0 | D142: 0 | F142: 0.0
A143: 知识产权宏观管理 | B143: 0 | C143: 0 | D143: 0 | F143: 0.0
A144: 商标管理 | B144: 0 | C144: 0 | D144: 0 | F144: 0.0
A145: 原产地地理标志管理 | B145: 0 | C145: 0 | D145: 0 | F145: 0.0
A146: 事业运行 | B146: 0 | C146: 0 | D146: 0 | F146: 0.0
A147: 其他知识产权事务支出 | B147: 0 | C147: 163 | D147: 163 | E147: =D147/C147*100 -> 100.0 | F147: 679.2
A148: 民族事务 | B148: 655 | C148: 560 | D148: 559 | E148: =D148/C148*100 -> 99.8 | F148: 57.2
A149: 行政运行 | B149: 507 | C149: 406 | D149: 405 | E149: =D149/C149*100 -> 99.8 | F149: 99.3
A150: 一般行政管理事务 | B150: 0 | D150: 0 | F150: 0.0
A151: 机关服务 | B151: 0 | D151: 0 | F151: 0.0
A152: 民族工作专项 | B152: 0 | D152: 0 | F152: 0.0
A153: 事业运行 | B153: 100 | C153: 97 | D153: 97 | E153: =D153/C153*100 -> 100.0 | F153: 82.2
A154: 其他民族事务支出 | B154: 48 | C154: 57 | D154: 57 | E154: =D154/C154*100 -> 100.0 | F154: 82.6
A155: 港澳台事务 | B155: 0 | C155: 0 | D155: 0 | F155: 0.0
A156: 行政运行 | B156: 0 | C156: 0 | D156: 0 | F156: 0.0
A157: 一般行政管理事务 | B157: 0 | C157: 0 | D157: 0 | F157: 0.0
A158: 机关服务 | B158: 0 | C158: 0 | D158: 0 | F158: 0.0
A159: 港澳事务 | B159: 0 | C159: 0 | D159: 0 | F159: 0.0
A160: 台湾事务 | B160: 0 | C160: 0 | D160: 0 | F160: 0.0
A161: 事业运行 | B161: 0 | C161: 0 | D161: 0 | F161: 0.0
A162: 其他港澳台事务支出 | B162: 0 | C162: 0 | D162: 0 | F162: 0.0
A163: 档案事务 | B163: 512 | C163: 549 | D163: 549 | E163: =D163/C163*100 -> 100.0 | F163: 116.3
A164: 行政运行 | B164: 459 | C164: 434 | D164: 434 | E164: =D164/C164*100 -> 100.0 | F164: 106.1
A165: 一般行政管理事务 | B165: 0 | D165: 0 | F165: 0.0
A166: 机关服务 | B166: 0 | D166: 0 | F166: 0.0
A167: 档案馆 | B167: 53 | C167: 109 | D167: 109 | E167: =D167/C167*100 -> 100.0 | F167: 187.9
A168: 其他档案事务支出 | B168: 0 | C168: 6 | D168: 6 | E168: =D168/C168*100 -> 100.0 | F168: 0.0
A169: 民主党派及工商联事务 | B169: 112 | C169: 249 | D169: 249 | E169: =D169/C169*100 -> 100.0 | F169: 177.9
A170: 行政运行 | B170: 0 | C170: 15 | D170: 15 | E170: =D170/C170*100 -> 100.0 | F170: 750.0
A171: 一般行政管理事务 | B171: 112 | C171: 234 | D171: 234 | E171: =D171/C171*100 -> 100.0 | F171: 169.6
A172: 机关服务 | B172: 0 | D172: 0 | F172: 0.0
A173: 参政议政 | B173: 0 | D173: 0 | F173: 0.0
A174: 事业运行 | B174: 0 | D174: 0 | F174: 0.0
A175: 其他民主党派及工商联事务支出 | B175: 0 | D175: 0 | F175: 0.0
A176: 群众团体事务 | B176: 1,807 | C176: 2,378 | D176: 2,378 | E176: =D176/C176*100 -> 100.0 | F176: 122.2
A177: 行政运行 | B177: 677 | C177: 584 | D177: 584 | E177: =D177/C177*100 -> 100.0 | F177: 96.5
A178: 一般行政管理事务 | B178: 328 | C178: 443 | D178: 443 | E178: =D178/C178*100 -> 100.0 | F178: 103.0
A179: 机关服务 | B179: 0 | C179: 0 | D179: 0 | F179: 0.0
A180: 工会事务 | B180: 138 | C180: 138 | D180: 138 | E180: =D180/C180*100 -> 100.0 | F180: 0.0
A181: 事业运行 | B181: 387 | C181: 368 | D181: 368 | E181: 100.0 | F181: 57.1
A182: 其他群众团体事务支出 | B182: 277 | C182: 845 | D182: 845 | E182: 100.0 | F182: 316.5
A183: 党委办公厅(室)及相关机构事务 | B183: 4,535 | C183: 4,699 | D183: 4,699 | E183: 100.0 | F183: 96.7
A184: 行政运行 | B184: 4,011 | C184: 3,680 | D184: 3,680 | E184: 100.0 | F184: 98.2
A185: 一般行政管理事务 | B185: 511 | C185: 993 | D185: 993 | E185: 100.0 | F185: 89.5
A186: 机关服务 | B186: 0 | C186: 0 | D186: 0 | F186: 0.0
A187: 专项业务 | B187: 0 | C187: 0 | D187: 0 | F187: 0.0
A188: 事业运行 | B188: 13 | C188: 15 | D188: 15 | E188: =D188/C188*100 -> 100.0 | F188: 0.0
A189: 其他党委办公厅(室)及相关机构事务支出 | B189: 0 | C189: 11 | D189: 11 | E189: =D189/C189*100 -> 100.0 | F189: 0.0
A190: 组织事务 | B190: 2,577 | C190: 2,421 | D190: 2,420 | E190: =D190/C190*100 -> 100.0 | F190: 111.0
A191: 行政运行 | B191: 1,547 | C191: 1,292 | D191: 1,292 | E191: =D191/C191*100 -> 100.0 | F191: 102.8
A192: 一般行政管理事务 | B192: 253 | C192: 431 | D192: 430 | E192: =D192/C192*100 -> 99.8 | F192: 130.7
A193: 机关服务 | B193: 0 | C193: 0 | D193: 0 | F193: 0.0
A194: 公务员事务 | B194: 0 | C194: 0 | D194: 0 | F194: 0.0
A195: 事业运行 | B195: 68 | C195: 85 | D195: 85 | E195: =D195/C195*100 -> 100.0 | F195: 126.9
A196: 其他组织事务支出 | B196: 709 | C196: 613 | D196: 613 | E196: =D196/C196*100 -> 100.0 | F196: 116.3
A197: 宣传事务 | B197: 1,414 | C197: 2,142 | D197: 1,993 | E197: =D197/C197*100 -> 93.0 | F197: 134.3
A198: 行政运行 | B198: 832 | C198: 678 | D198: 678 | E198: =D198/C198*100 -> 100.0 | F198: 102.0
A199: 一般行政管理事务 | B199: 402 | C199: 417 | D199: 417 | E199: =D199/C199*100 -> 100.0 | F199: 103.7
A200: 机关服务 | B200: 0 | C200: 0 | D200: 0 | F200: 0.0
... 1142 more rows

Sheet 7关于 2020 年攀枝花市本级一般公共预算支出决算情况的说明
A1: 关于2020年攀枝花市市本级一般公共预算支出决算情况的说明
A3: 2020年市本级一般公共预算支出决算数为637646万元，为当年预算的99.8%，为上年决算的
A4: 112.4%。其中：
A5: 一、一般公共服务支出决算数为53144万元，为当年预算的99.3%，为上年决算的93.4%。
A6: 二、国防支出决算数为995万元，为当年预算的100%，2019年未实现国防支出。
A7: 三、公共安全支出决算数为62999万元，为当年预算的98.6%，为上年决算的106.9%。
A8: 四、教育支出决算数为95946万元，为当年预算的100.1%，为上年决算的94.9%。
A9: 五、科学技术支出决算数为3543万元，为当年预算的104.6%，为上年决算的50.1%。
A10: 六、文化旅游体育与传媒支出决算数为9137万元，为当年预算的100%，为上年决算的71.9%。
A11: 七、社会保障和就业支出决算数为53883万元，为当年预算的98.4%，为上年决算的90.3%。
A12: 八、卫生健康支出决算数为128873万元，为当年预算的100%，为上年决算的200.2%。
A13: 九、节能环保支出决算数为14223万元，为当年预算的112%，为上年决算的76.7%。
A14: 十、城乡社区支出决算数为57279万元，为当年预算的99.1%，为上年决算的88.4%。
A15: 十一、农林水支出决算数为38572万元，为当年预算的99.4%，为上年决算的172.6%。
A16: 十二、交通运输支出决算数为38311万元，为当年预算的100.6%，为上年决算的141.7%。
A17: 十三、资源勘探信息等支出决算数为9013万元，为当年预算的83.7%，为上年决算的58.2%。
A18: 十四、商业服务业等支出决算数为723万元，为当年预算的99.9%，为上年决算的70.8%。
A19: 十五、金融支出决算数为3671万元，为当年预算的100%，为上年决算的390.9%。
A20: 十六、自然资源海洋气象等支出决算数为4585万元，为当年预算的98.9%，为上年决算的62.9%。
A21: 十七、住房保障支出决算数为23073万元，为当年预算的99.3%，为上年决算的157.5%。
A22: 十八、粮油物资储备支出决算数为344万元，为当年预算的100%。
A23: 十九、灾害防治及应急管理支出决算数为8642万元，为当年预算的136.5%，为上年决算的201.1%。
A24: 二十、债务付息支出决算数为37917万元，为当年预算的100%，为上年决算的95.9%。
A25: 二十一、债务发行费用支出决算数为100万元，为当年预算的100%，为上年决算的169.5%。

Sheet 8.市本级一般公用预算收支决算平衡表
A1: 2020年攀枝花市市本级一般公共预算收支决算平衡表
A2: 单位：万元
A3: 项 目 | B3: 决 算 数 | C3: 项 目 | D3: 决 算 数
A4: 一般公共预算收入 | B4: 297,248 | C4: 一般公共预算支出 | D4: 637,646
A5: 上级补助收入 | B5: 524,107 | C5: 补助下级支出 | D5: 279,516
A6: 返还性收入 | B6: 29,646 | C6: 返还性支出 | D6: 12,739
A7: 所得税基数返还收入 | B7: 9,428 | C7: 所得税基数返还支出 | D7: 3,865
A8: 成品油税费改革税收返还收入 | B8: 19,263 | C8: 成品油税费改革税收返还支出 | D8: 473
A9: 增值税税收返还收入 | B9: 28,459 | C9: 增值税税收返还支出 | D9: 6,058
A10: 消费税税收返还收入 | B10: 965 | C10: 消费税税收返还支出 | D10: 171
A11: 增值税“五五分享”税收返还收入 | B11: -15,973 | C11: 增值税“五五分享”税收返还支出 | D11: 7,499
A12: 其他返还性收入 | B12: -12,496 | C12: 其他返还性支出 | D12: -5,327
A13: 一般性转移支付收入 | B13: 418,851 | C13: 一般性转移支付支出 | D13: 219,507
A14: 体制补助收入 | B14: 0 | C14: 体制补助支出 | D14: 0
A15: 均衡性转移支付收入 | B15: 95,585 | C15: 均衡性转移支付支出 | D15: 74,801
A16: 县级基本财力保障机制奖补资金收入 | B16: 33,049 | C16: 县级基本财力保障机制奖补资金支出 | D16: 33,029
A17: 结算补助收入 | B17: 56,298 | C17: 结算补助支出 | D17: 18,349
A18: 资源枯竭型城市转移支付补助收入 | B18: 7,994 | C18: 资源枯竭型城市转移支付补助支出 | D18: 7,994
A19: 企业事业单位划转补助收入 | B19: 22,315 | C19: 企业事业单位划转补助支出 | D19: -5,641
A20: 产粮(油)大县奖励资金收入 | B20: 0 | C20: 产粮(油)大县奖励资金支出 | D20: 0
A21: 重点生态功能区转移支付收入 | B21: 12,520 | C21: 重点生态功能区转移支付支出 | D21: 8,929
A22: 固定数额补助收入 | B22: 32,501 | C22: 固定数额补助支出 | D22: 12,958
A23: 革命老区转移支付收入 | B23: 0 | C23: 革命老区转移支付支出 | D23: 0
A24: 民族地区转移支付收入 | B24: 0 | C24: 民族地区转移支付支出 | D24: 0
A25: 边境地区转移支付收入 | B25: 0 | C25: 边境地区转移支付支出 | D25: 0
A26: 贫困地区转移支付收入 | B26: 1,338 | C26: 贫困地区转移支付支出 | D26: 1,338
A27: 一般公共服务共同财政事权转移支付收入 | B27: 0 | C27: 一般公共服务共同财政事权转移支付支出 | D27: 0
A28: 外交共同财政事权转移支付收入 | B28: 0 | C28: 外交共同财政事权转移支付支出 | D28: 0
A29: 国防共同财政事权转移支付收入 | B29: 0 | C29: 国防共同财政事权转移支付支出 | D29: 0
A30: 公共安全共同财政事权转移支付收入 | B30: 6,118 | C30: 公共安全共同财政事权转移支付支出 | D30: 1,585
A31: 教育共同财政事权转移支付收入 | B31: 30,741 | C31: 教育共同财政事权转移支付支出 | D31: 12,594
A32: 科学技术共同财政事权转移支付收入 | B32: 207 | C32: 科学技术共同财政事权转移支付支出 | D32: 157
A33: 文化旅游体育与传媒共同财政事权转移支付收入 | B33: 1,206 | C33: 文化旅游体育与传媒共同财政事权转移支付支出 | D33: 919
A34: 社会保障和就业共同财政事权转移支付收入 | B34: 24,397 | C34: 社会保障和就业共同财政事权转移支付支出 | D34: 14,836
A35: 医疗卫生共同财政事权转移支付收入 | B35: 45,143 | C35: 医疗卫生共同财政事权转移支付支出 | D35: 8,172
A36: 节能环保共同财政事权转移支付收入 | B36: 1,626 | C36: 节能环保共同财政事权转移支付支出 | D36: 21
A37: 城乡社区共同财政事权转移支付收入 | B37: 0 | C37: 城乡社区共同财政事权转移支付支出 | D37: 0
A38: 农林水共同财政事权转移支付收入 | B38: 26,941 | C38: 农林水共同财政事权转移支付支出 | D38: 22,365
A39: 交通运输共同财政事权转移支付收入 | B39: 8,125 | C39: 交通运输共同财政事权转移支付支出 | D39: 1,063
A40: 资源勘探信息等共同财政事权转移支付收入 | B40: 0 | C40: 资源勘探信息等共同财政事权转移支付支出 | D40: 0
A41: 商业服务业等共同财政事权转移支付收入 | B41: 0 | C41: 商业服务业等共同财政事权转移支付支出 | D41: 0
A42: 金融共同财政事权转移支付收入 | B42: 0 | C42: 金融共同财政事权转移支付支出 | D42: 0
A43: 自然资源海洋气象等共同财政事权转移支付收入 | B43: 0 | C43: 自然资源海洋气象等共同财政事权转移支付支出 | D43: 0
A44: 住房保障共同财政事权转移支付收入 | B44: 5,298 | C44: 住房保障共同财政事权转移支付支出 | D44: 5,053
A45: 粮油物资储备共同财政事权转移支付收入 | B45: 0 | C45: 粮油物资储备共同财政事权转移支付支出 | D45: 0
A46: 灾害防治及应急管理共同财政事权转移支付收入 | B46: 989 | C46: 灾害防治及应急管理共同财政事权转移支付支出 | D46: 337
A47: 其他共同财政事权转移支付收入 | B47: 0 | C47: 其他共同财政事权转移支付支出 | D47: 0
A48: 其他一般性转移支付收入 | B48: 6,460 | C48: 其他一般性转移支付支出 | D48: 648
A49: 专项转移支付收入 | B49: 75,610 | C49: 专项转移支付支出 | D49: 47,270
A50: 下级上解收入 | B50: 39,259 | C50: 上解上级支出 | D50: 65,462
A51: 体制上解收入 | B51: 0 | C51: 体制上解支出 | D51: 0
A52: 专项上解收入 | B52: 39,259 | C52: 专项上解支出 | D52: 65,462
A53: 上年结余 | B53: 41,164
A54: 调入资金 | B54: 128,593 | C54: 调出资金 | D54: 0
A55: 从政府性基金预算调入 | B55: 30,000
A56: 从国有资本经营预算调入 | B56: 1,700
A57: 从其他资金调入 | B57: 96,893
A58: 债务收入 | B58: 0 | C58: 债务还本支出 | D58: 100,766
A59: 地方政府债务收入 | B59: 0 | C59: 地方政府一般债务还本支出 | D59: 100,766
A60: 一般债务收入 | B60: 0 | C60: 地方政府一般债券还本支出 | D60: 95,800
A61: 地方政府一般债券收入 | B61: 0 | C61: 地方政府向外国政府借款还本支出 | D61: 1,660
A62: 地方政府向外国政府借款收入 | B62: 0 | C62: 地方政府向国际组织借款还本支出 | D62: 3,306
A63: 地方政府向国际组织借款收入 | B63: 0 | C63: 地方政府其他一般债务还本支出 | D63: 0
A64: 地方政府其他一般债务收入 | B64: 0
A65: 债务转贷收入 | B65: 200,513 | C65: 债务转贷支出 | D65: 107,714
A66: 地方政府一般债务转贷收入 | B66: 200,513 | C66: 地方政府一般债券转贷支出 | D66: 107,714
A67: 地方政府一般债券转贷收入 | B67: 200,513 | C67: 地方政府向外国政府借款转贷支出 | D67: 0
A68: 地方政府向外国政府借款转贷收入 | B68: 0 | C68: 地方政府向国际组织借款转贷支出 | D68: 0
A69: 地方政府向国际组织借款转贷收入 | B69: 0 | C69: 地方政府其他一般债务转贷支出 | D69: 0
A70: 地方政府其他一般债务转贷收入 | B70: 0
A71: 动用预算稳定调节基金 | B71: 736 | C71: 安排预算稳定调节基金 | D71: 248
A72: 接受其他地区援助收入 | B72: 0 | C72: 援助其他地区支出 | D72: 3,148
C73: 年终结余 | D73: 37,120
C74: 减:结转下年的支出 | D74: 37,120
C75: 净结余 | D75: 0
A76: 收 入 总 计 | B76: 1,231,620 | C76: 支 出 总 计 | D76: 1,231,620

Sheet 9.市本级一般公共预算经济分类科目决算
A1: 2020年攀枝花市市本级一般公共预算经济分类科目支出决算表
B2: 单位:万元
A3: 预 算 科 目 | B3: 决 算 数
A4: 机关工资福利支出 | B4: 127,157
A5: 工资奖金津补贴 | B5: 93,437
A6: 社会保障缴费 | B6: 17,644
A7: 住房公积金 | B7: 8,609
A8: 其他工资福利支出 | B8: 7,467
A9: 机关商品和服务支出 | B9: 200,596
A10: 办公经费 | B10: 13,896
A11: 会议费 | B11: 361
A12: 培训费 | B12: 58
A13: 专用材料购置费
A14: 委托业务费 | B14: 9,709
A15: 公务接待费 | B15: 698
A16: 因公出国(境)费用
A17: 公务用车运行维护费 | B17: 1,674
A18: 维修(护)费 | B18: 59
A19: 其他商品和服务支出 | B19: 174,141
A20: 机关资本性支出(一) | B20: 16,007
A21: 房屋建筑物购建
A22: 基础设施建设 | B22: 8,924
A23: 公务用车购置 | B23: 150
A24: 土地征迁补偿和安置支出
A25: 设备购置 | B25: 108
A26: 大型修缮
A27: 其他资本性支出 | B27: 6,825
A28: 机关资本性支出(二)
A29: 房屋建筑物购建
A30: 基础设施建设
A31: 公务用车购置
A32: 设备购置
A33: 大型修缮
A34: 其他资本性支出
A35: 对事业单位经常性补助 | B35: 198,657
A36: 工资福利支出 | B36: 99,276
A37: 商品和服务支出 | B37: 89,355
A38: 其他对事业单位补助 | B38: 10,026
A39: 对事业单位资本性补助 | B39: 4,916
A40: 资本性支出(一) | B40: 528
A41: 资本性支出(二) | B41: 4,388
A42: 对企业补助 | B42: 1,119
A43: 费用补贴 | B43: 270
A44: 利息补贴 | B44: 849
A45: 其他对企业补助
A46: 对企业资本性支出 | B46: 61
A47: 对企业资本性支出(一)
A48: 对企业资本性支出(二) | B48: 61
A49: 对个人和家庭的补助 | B49: 21,179
A50: 社会福利和救助 | B50: 1,243
A51: 助学金 | B51: 3,523
A52: 个人农业生产补贴
A53: 离退休费 | B53: 16,413
A54: 其他对个人和家庭补助
A55: 对社会保障基金补助 | B55: 39,937
A56: 对社会保险基金补助 | B56: 39,937
A57: 补充全国社会保障基金
A58: 债务利息及费用支出 | B58: 28,017
A59: 国内债务付息 | B59: 27,917
A60: 国外债务付息
A61: 国内债务发行费用 | B61: 100
A62: 国外债务发行费用
A63: 其他支出
A64: 赠与
A65: 国家赔偿费用支出
A66: 对民间非营利组织和群众性自治组织补贴
A67: 其他支出
A68: 一般公共预算支出 | B68: =B63+B58+B55+B49+B42+B39+B35+B28+B20+B9+B4+B46 -> 637,646

Sheet 10.省对市税返和转移支付补助决算表
A1: 2020年省对市税返和转移支付补助决算表
B2: 单位：万元
A3: 项 目 | B3: 决算数
A4: 上级补助收入 | B4: =SUM(B5,B12,B48) -> 759,818
A5: 返还性收入 | B5: =SUM(B6:B11) -> 28,611
A6: 所得税基数返还收入 | B6: 9,437
A7: 成品油税费改革税收返还收入 | B7: 21,087
A8: 增值税税收返还收入 | B8: 38,251
A9: 消费税税收返还收入 | B9: 966
A10: 增值税“五五分享”税收返还收入 | B10: -28,149
A11: 其他返还性收入 | B11: -12,981
A12: 一般性转移支付收入 | B12: =SUM(B13:B47) -> 617,334
A13: 体制补助收入 | B13: 0
A14: 均衡性转移支付收入 | B14: 131,921
A15: 县级基本财力保障机制奖补资金收入 | B15: 54,238
A16: 结算补助收入 | B16: 56,102
A17: 资源枯竭型城市转移支付补助收入 | B17: 7,994
A18: 企业事业单位划转补助收入 | B18: 22,453
A19: 产粮(油)大县奖励资金收入 | B19: 0
A20: 重点生态功能区转移支付收入 | B20: 19,621
A21: 固定数额补助收入 | B21: 54,582
A22: 革命老区转移支付收入 | B22: 0
A23: 民族地区转移支付收入 | B23: 0
A24: 边境地区转移支付收入 | B24: 0
A25: 贫困地区转移支付收入 | B25: 15,258
A26: 一般公共服务共同财政事权转移支付收入 | B26: 0
A27: 外交共同财政事权转移支付收入 | B27: 0
A28: 国防共同财政事权转移支付收入 | B28: 0
A29: 公共安全共同财政事权转移支付收入 | B29: 8,630
A30: 教育共同财政事权转移支付收入 | B30: 43,992
A31: 科学技术共同财政事权转移支付收入 | B31: 330
A32: 文化旅游体育与传媒共同财政事权转移支付收入 | B32: 2,904
A33: 社会保障和就业共同财政事权转移支付收入 | B33: 32,983
A34: 医疗卫生共同财政事权转移支付收入 | B34: 52,382
A35: 节能环保共同财政事权转移支付收入 | B35: 2,667
A36: 城乡社区共同财政事权转移支付收入 | B36: 0
A37: 农林水共同财政事权转移支付收入 | B37: 78,841
A38: 交通运输共同财政事权转移支付收入 | B38: 11,812
A39: 资源勘探信息等共同财政事权转移支付收入 | B39: 0
A40: 商业服务业等共同财政事权转移支付收入 | B40: 0
A41: 金融共同财政事权转移支付收入 | B41: -17
A42: 自然资源海洋气象等共同财政事权转移支付收入 | B42: 0
A43: 住房保障共同财政事权转移支付收入 | B43: 9,887
A44: 粮油物资储备共同财政事权转移支付收入 | B44: 0
A45: 灾害防治及应急管理共同财政事权转移支付收入 | B45: 1,346
A46: 其他共同财政事权转移支付收入 | B46: 0
A47: 其他一般性转移支付收入 | B47: 9,408
A48: 专项转移支付收入 | B48: =SUM(B49:B69) -> 113,873
A49: 一般公共服务 | B49: 1,318
A50: 外交 | B50: 0
A51: 国防 | B51: 315
A52: 公共安全 | B52: 7,614
A53: 教育 | B53: 3,920
A54: 科学技术 | B54: 8,770
A55: 文化旅游体育与传媒 | B55: 3,261
A56: 社会保障和就业 | B56: 0
A57: 卫生健康 | B57: 5,876
A58: 节能环保 | B58: 10,942
A59: 城乡社区 | B59: 6,220
A60: 农林水 | B60: 10,645
A61: 交通运输 | B61: 10,818
A62: 资源勘探信息等 | B62: 14,899
A63: 商业服务业等 | B63: 2,290
A64: 金融 | B64: 3,151
A65: 自然资源海洋气象等 | B65: 596
A66: 住房保障 | B66: 5,096
A67: 粮油物资储备 | B67: 149
A68: 灾害防治及应急管理 | B68: 6,093
A69: 其他收入 | B69: 11,900

Sheet 11.市对区税返和转移支付补助决算数
A1: 2020年市对区税返和转移支付补助决算表
B2: 单位：万元
A3: 项 目 | B3: 决 算 数
A4: 补助下级支出 | B4: =SUM(B5,B12,B47) -> 279,516
A5: 返还性支出 | B5: =SUM(B6:B11) -> 12,739
A6: 所得税基数返还支出 | B6: 3,865
A7: 成品油税费改革税收返还支出 | B7: 473
A8: 增值税税收返还支出 | B8: 6,058
A9: 消费税税收返还支出 | B9: 171
A10: 增值税“五五分享”税收返还支出 | B10: 7,499
A11: 其他返还性支出 | B11: -5,327
A12: 一般性转移支付支出 | B12: =SUM(B13:B46) -> 219,507
A13: 体制补助支出 | B13: 0
A14: 均衡性转移支付支出 | B14: 74,801
A15: 县级基本财力保障机制奖补资金支出 | B15: 33,029
A16: 结算补助支出 | B16: 18,349
A17: 资源枯竭型城市转移支付补助支出 | B17: 7,994
A18: 企业事业单位划转补助支出 | B18: -5,641
A19: 重点生态功能区转移支付支出 | B19: 8,929
A20: 固定数额补助支出 | B20: 12,958
A21: 革命老区转移支付支出 | B21: 0
A22: 民族地区转移支付支出 | B22: 0
A23: 边境地区转移支付支出 | B23: 0
A24: 贫困地区转移支付支出 | B24: 1,338
A25: 一般公共服务共同财政事权转移支付支出 | B25: 0
A26: 外交共同财政事权转移支付支出 | B26: 0
A27: 国防共同财政事权转移支付支出 | B27: 0
A28: 公共安全共同财政事权转移支付支出 | B28: 1,585
A29: 教育共同财政事权转移支付支出 | B29: 12,594
A30: 科学技术共同财政事权转移支付支出 | B30: 157
A31: 文化旅游体育与传媒共同财政事权转移支付支出 | B31: 919
A32: 社会保障和就业共同财政事权转移支付支出 | B32: 14,836
A33: 医疗卫生共同财政事权转移支付支出 | B33: 8,172
A34: 节能环保共同财政事权转移支付支出 | B34: 21
A35: 城乡社区共同财政事权转移支付支出 | B35: 0
A36: 农林水共同财政事权转移支付支出 | B36: 22,365
A37: 交通运输共同财政事权转移支付支出 | B37: 1,063
A38: 资源勘探信息等共同财政事权转移支付支出 | B38: 0
A39: 商业服务业等共同财政事权转移支付支出 | B39: 0
A40: 金融共同财政事权转移支付支出 | B40: 0
A41: 自然资源海洋气象等共同财政事权转移支付支出 | B41: 0
A42: 住房保障共同财政事权转移支付支出 | B42: 5,053
A43: 粮油物资储备共同财政事权转移支付支出 | B43: 0
A44: 灾害防治及应急管理共同财政事权转移支付支出 | B44: 337
A45: 其他共同财政事权转移支付支出 | B45: 0
A46: 其他一般性转移支付支出 | B46: 648
A47: 专项转移支付支出 | B47: =SUM(B48:B68) -> 47,270
A48: 一般公共服务 | B48: 935
A49: 外交 | B49: 0
A50: 国防 | B50: 0
A51: 公共安全 | B51: 500
A52: 教育 | B52: 1,540
A53: 科学技术 | B53: 7,322
A54: 文化旅游体育与传媒 | B54: 269
A55: 社会保障和就业 | B55: 2,125
A56: 卫生健康 | B56: 639
A57: 节能环保 | B57: 3,099
A58: 城乡社区 | B58: 12,270
A59: 农林水 | B59: 3,338
A60: 交通运输 | B60: 2,321
A61: 资源勘探信息等 | B61: 1,169
A62: 商业服务业等 | B62: 1,000
A63: 金融 | B63: 35
A64: 自然资源海洋气象等 | B64: 394
A65: 住房保障 | B65: 4,029
A66: 粮油物资储备 | B66: 0
A67: 灾害防治及应急管理 | B67: 1,400
A68: 其他支出 | B68: 4,885

Sheet 12.全市政府性基金收入决算表
A1: 2020年攀枝花市政府性基金预算收入决算表
D2: 单位:万元，%
A3: 预算科目 | B3: 年初预算数 | C3: 变动预算数 | D3: 决算数 | E3: 为预算 | F3: 为上年决算
A4: 国有土地收益基金收入 | B4: 10,715 | C4: 10,715 | D4: 16,659 | E4: =D4/C4*100 -> 155.5 | F4: 106.4
A5: 农业土地开发资金收入 | B5: 612 | C5: 612 | D5: 892 | E5: =D5/C5*100 -> 145.8 | F5: 124.8
A6: 国有土地使用权出让收入 | B6: 471,365 | C6: 421,130 | D6: 416,924 | E6: 99.0 | F6: 104.9
A7: 城市基础设施配套费收入 | B7: 5,240 | C7: 10,826 | D7: 13,699 | E7: 126.5 | F7: 94.0
A8: 污水处理费收入 | B8: 3,660 | C8: 3,660 | D8: 1,271 | E8: 34.7 | F8: 39.7
A9: 其他政府性基金收入
A10: 政府性基金预算收入 | B10: =SUM(B4:B9) -> 491,592 | C10: =SUM(C4:C9) -> 446,943 | D10: =SUM(D4:D9) -> 449,445 | E10: 100.6 | F10: 104.1

Sheet 13.全市政府性基金支出决算表
A1: 2020年攀枝花市政府性基金预算支出决算表
D2: 单位：万元
A3: 科目名称 | B3: 年初预算数 | C3: 变动预算数 | D3: 决算数 | E3: 为预算 | F3: 为上年决算
A4: 科学技术支出 | D4: 0
A5: 核电站乏燃料处理处置基金支出 | D5: 0
A6: 乏燃料运输 | D6: 0
A7: 乏燃料离堆贮存 | D7: 0
A8: 乏燃料后处理 | D8: 0
A9: 高放废物的处理处置 | D9: 0
A10: 乏燃料后处理厂的建设、运行、改造和退役 | D10: 0
A11: 其他乏燃料处理处置基金支出 | D11: 0
A12: 文化旅游体育与传媒支出 | C12: 62 | D12: 43 | E12: =D12/C12*100 -> 69 | F12: 12.0
A13: 国家电影事业发展专项资金安排的支出 | C13: 62 | D13: 43 | E13: =D13/C13*100 -> 69 | F13: 16.7
A14: 资助国产影片放映 | D14: 0 | F14: 0.0
A15: 资助影院建设 | D15: 0 | F15: 0.0
A16: 资助少数民族语电影译制 | D16: 0 | F16: 0.0
A17: 其他国家电影事业发展专项资金支出 | C17: 62 | D17: 43 | E17: =D17/C17*100 -> 69 | F17: 40.6
A18: 旅游发展基金支出 | D18: 0 | F18: 0.0
A19: 宣传促销 | D19: 0 | F19: 0.0
A20: 行业规划 | D20: 0 | F20: 0.0
A21: 旅游事业补助 | D21: 0 | F21: 0.0
A22: 地方旅游开发项目补助 | D22: 0 | F22: 0.0
A23: 其他旅游发展基金支出 | D23: 0 | F23: 0.0
A24: 国家电影事业发展专项资金对应专项债务收入安排的支出 | D24: 0 | F24: 0.0
A25: 资助城市影院 | D25: 0 | F25: 0.0
A26: 其他国家电影事业发展专项资金对应专项债务收入支出 | D26: 0 | F26: 0.0
A27: 社会保障和就业支出 | B27: 1,444 | C27: 1,755 | D27: 1,755 | E27: =D27/C27*100 -> 100 | F27: 68.7
A28: 大中型水库移民后期扶持基金支出 | B28: 1,444 | C28: 1,755 | D28: 1,755 | E28: =D28/C28*100 -> 100 | F28: 68.7
A29: 移民补助 | B29: 1,444 | C29: 1,754 | D29: 1,754 | E29: =D29/C29*100 -> 100 | F29: 106.4
A30: 基础设施建设和经济发展 | D30: 0 | F30: 0.0
A31: 其他大中型水库移民后期扶持基金支出 | C31: 1 | D31: 1 | E31: =D31/C31*100 -> 100 | F31: 0.0
A32: 小型水库移民扶助基金安排的支出 | D32: 0 | F32: 0.0
A33: 移民补助 | D33: 0 | F33: 0.0
A34: 基础设施建设和经济发展 | D34: 0 | F34: 0.0
A35: 其他小型水库移民扶助基金支出 | D35: 0 | F35: 0.0
A36: 小型水库移民扶助基金对应专项债务收入安排的支出 | D36: 0 | F36: 0.0
A37: 基础设施建设和经济发展 | D37: 0 | F37: 0.0
A38: 其他小型水库移民扶助基金对应专项债务收入安排的支出 | D38: 0 | F38: 0.0
A39: 节能环保支出 | D39: 0 | F39: 0.0
A40: 可再生能源电价附加收入安排的支出 | D40: 0 | F40: 0.0
A41: 风力发电补助 | D41: 0 | F41: 0.0
A42: 太阳能发电补助 | D42: 0 | F42: 0.0
A43: 生物质能发电补助 | D43: 0 | F43: 0.0
A44: 其他可再生能源电价附加收入安排的支出 | D44: 0 | F44: 0.0
A45: 废弃电器电子产品处理基金支出 | D45: 0 | F45: 0.0
A46: 回收处理费用补贴 | D46: 0 | F46: 0.0
A47: 信息系统建设 | D47: 0 | F47: 0.0
A48: 基金征管经费 | D48: 0 | F48: 0.0
A49: 其他废弃电器电子产品处理基金支出 | D49: 0 | F49: 0.0
A50: 城乡社区支出 | B50: 371,139 | C50: 342,504 | D50: 329,333 | E50: =D50/C50*100 -> 96 | F50: 63.5
A51: 国有土地使用权出让收入及对应专项债务收入安排的支出 | B51: 350,912 | C51: 308,812 | D51: 303,562 | E51: =D51/C51*100 -> 98 | F51: 77.3
A52: 征地和拆迁补偿支出 | B52: 122,015 | C52: =4000+59432 -> 63,432 | D52: 59,432 | E52: 94 | F52: 68.8
A53: 土地开发支出 | B53: 205,801 | C53: 222,459 | D53: 222,459 | E53: 100 | F53: 91.3
A54: 城市建设支出 | C54: 263 | D54: 263 | E54: 100 | F54: 27.0
A55: 农村基础设施建设支出 | C55: 1,260 | D55: 1,260 | E55: 100 | F55: 13.5
A56: 补助被征地农民支出 | B56: 8,052 | C56: 2,013 | D56: 2,013 | E56: 100 | F56: 19.0
A57: 土地出让业务支出 | C57: 0 | D57: 0 | F57: 0.0
A58: 廉租住房支出 | B58: 36 | C58: 36 | D58: 36 | E58: =D58/C58*100 -> 100 | F58: 0.0
A59: 支付破产或改制企业职工安置费 | C59: 0 | D59: 0 | F59: 0.0
A60: 棚户区改造支出 | C60: 10,939 | D60: 10,939 | E60: =D60/C60*100 -> 100 | F60: 42.2
A61: 公共租赁住房支出 | C61: 0 | D61: 0 | F61: 0.0
A62: 保障性住房租金补贴 | B62: 8 | C62: 4 | D62: 4 | E62: =D62/C62*100 -> 100 | F62: 200.0
A63: 其他国有土地使用权出让收入安排的支出 | B63: 15,000 | C63: =1250+7156 -> 8,406 | D63: 7,156 | E63: 85 | F63: 46.0
A64: 国有土地收益基金安排的支出 | B64: 10,715 | C64: 16,659 | D64: 13,118 | E64: 79 | F64: 83.8
A65: 征地和拆迁补偿支出 | B65: 1,815 | C65: =1541+3852 -> 5,393 | D65: 3,852 | E65: 71 | F65: 70.0
A66: 土地开发支出 | B66: 8,900 | C66: =2000+8900 -> 10,900 | D66: 8,900 | E66: 82 | F66: 87.6
A67: 其他国有土地收益基金支出 | C67: 366 | D67: 366 | E67: 100 | F67: 0.0
A68: 农业土地开发资金安排的支出 | B68: 612 | C68: 1,597 | D68: 279 | E68: 17 | F68: 187.2
A69: 城市基础设施配套费安排的支出 | B69: 5,240 | C69: 14,109 | D69: 11,047 | E69: 78 | F69: 494.5
A70: 城市公共设施 | C70: =6711-344 -> 6,367 | D70: 4,711 | E70: 74 | F70: 15,196.8
A71: 城市环境卫生 | B71: 1,000 | C71: 3,402 | D71: 2,402 | E71: 71 | F71: 184.1
A72: 公有房屋 | C72: 0 | D72: 0 | F72: 0.0
A73: 城市防洪 | C73: 0 | D73: 0 | F73: 0.0
A74: 其他城市基础设施配套费安排的支出 | B74: 4,240 | C74: 4,340 | D74: 3,934 | E74: =D74/C74*100 -> 91 | F74: 438.1
A75: 污水处理费安排的支出 | C75: 1,327 | D75: 1,327 | E75: =D75/C75*100 -> 100 | F75: 42.2
A76: 污水处理设施建设和运营 | C76: 427 | D76: 427 | E76: =D76/C76*100 -> 100 | F76: 402.8
A77: 代征手续费 | C77: 0 | D77: 0 | F77: 0.0
A78: 其他污水处理费安排的支出 | C78: 900 | D78: 900 | E78: =D78/C78*100 -> 100 | F78: 30.8
A79: 土地储备专项债券收入安排的支出 | C79: 0 | D79: 0 | F79: 0.0
A80: 征地和拆迁补偿支出 | C80: 0 | D80: 0 | F80: 0.0
A81: 土地开发支出 | C81: 0 | D81: 0 | F81: 0.0
A82: 其他土地储备专项债券收入安排的支出 | C82: 0 | D82: 0 | F82: 0.0
A83: 棚户区改造专项债券收入安排的支出 | C83: 0 | D83: 0 | F83: 0.0
A84: 征地和拆迁补偿支出 | C84: 0 | D84: 0 | F84: 0.0
A85: 土地开发支出 | C85: 0 | D85: 0 | F85: 0.0
A86: 其他棚户区改造专项债券收入安排的支出 | D86: 0 | F86: 0.0
A87: 城市基础设施配套费对应专项债务收入安排的支出 | D87: 0 | F87: 0.0
A88: 城市公共设施 | D88: 0 | F88: 0.0
A89: 城市环境卫生 | D89: 0 | F89: 0.0
A90: 公有房屋 | D90: 0 | F90: 0.0
A91: 城市防洪 | D91: 0 | F91: 0.0
A92: 其他城市基础设施配套费对应专项债务收入安排的支出 | D92: 0 | F92: 0.0
A93: 污水处理费对应专项债务收入安排的支出 | B93: 3,660 | D93: 0 | F93: 0.0
A94: 污水处理设施建设和运营 | D94: 0 | F94: 0.0
A95: 其他污水处理费对应专项债务收入安排的支出 | B95: 3,660 | D95: 0 | F95: 0.0
A96: 农林水支出 | B96: 360 | C96: 1,460 | D96: 1,460 | E96: =D96/C96*100 -> 100 | F96: 312.6
A97: 大中型水库库区基金安排的支出 | B97: 360 | C97: 1,460 | D97: 1,460 | E97: =D97/C97*100 -> 100 | F97: 312.6
A98: 基础设施建设和经济发展 | C98: 811 | D98: 811 | E98: =D98/C98*100 -> 100 | F98: 0.0
A99: 解决移民遗留问题 | C99: 0 | D99: 0 | F99: 0.0
A100: 库区防护工程维护 | C100: 0 | D100: 0 | F100: 0.0
A101: 其他大中型水库库区基金支出 | B101: 360 | C101: 649 | D101: 649 | E101: =D101/C101*100 -> 100 | F101: 139.0
A102: 三峡水库库区基金支出 | D102: 0 | F102: 0.0
A103: 基础设施建设和经济发展 | D103: 0 | F103: 0.0
A104: 解决移民遗留问题 | D104: 0 | F104: 0.0
A105: 库区维护和管理 | D105: 0 | F105: 0.0
A106: 其他三峡水库库区基金支出 | D106: 0 | F106: 0.0
A107: 国家重大水利工程建设基金安排的支出 | D107: 0 | F107: 0.0
A108: 南水北调工程建设 | D108: 0 | F108: 0.0
A109: 三峡后续工作 | D109: 0 | F109: 0.0
A110: 地方重大水利工程建设 | D110: 0 | F110: 0.0
A111: 其他重大水利工程建设基金支出 | D111: 0 | F111: 0.0
A112: 大中型水库库区基金对应专项债务收入安排的支出 | D112: 0 | F112: 0.0
A113: 基础设施建设和经济发展 | D113: 0 | F113: 0.0
A114: 其他大中型水库库区基金对应专项债务收入支出 | D114: 0 | F114: 0.0
A115: 国家重大水利工程建设基金对应专项债务收入安排的支出 | D115: 0 | F115: 0.0
A116: 南水北调工程建设 | D116: 0 | F116: 0.0
A117: 三峡工程后续工作 | D117: 0 | F117: 0.0
A118: 地方重大水利工程建设 | D118: 0 | F118: 0.0
A119: 其他重大水利工程建设基金对应专项债务收入支出 | D119: 0 | F119: 0.0
A120: 交通运输支出 | D120: 0 | F120: 0.0
A121: 海南省高等级公路车辆通行附加费安排的支出 | D121: 0 | F121: 0.0
A122: 公路建设 | D122: 0 | F122: 0.0
A123: 公路养护 | D123: 0 | F123: 0.0
A124: 公路还贷 | D124: 0 | F124: 0.0
A125: 其他海南省高等级公路车辆通行附加费安排的支出 | D125: 0 | F125: 0.0
A126: 车辆通行费安排的支出 | D126: 0 | F126: 0.0
A127: 公路还贷 | D127: 0 | F127: 0.0
A128: 政府还贷公路养护 | D128: 0 | F128: 0.0
A129: 政府还贷公路管理 | D129: 0 | F129: 0.0
A130: 其他车辆通行费安排的支出 | D130: 0 | F130: 0.0
A131: 港口建设费安排的支出 | D131: 0 | F131: 0.0
A132: 港口设施 | D132: 0 | F132: 0.0
A133: 航道建设和维护 | D133: 0 | F133: 0.0
A134: 航运保障系统建设 | D134: 0 | F134: 0.0
A135: 其他港口建设费安排的支出 | D135: 0 | F135: 0.0
A136: 铁路建设基金支出 | D136: 0 | F136: 0.0
A137: 铁路建设投资 | D137: 0 | F137: 0.0
A138: 购置铁路机车车辆 | D138: 0 | F138: 0.0
A139: 铁路还贷 | D139: 0 | F139: 0.0
A140: 建设项目铺底资金 | D140: 0 | F140: 0.0
A141: 勘测设计 | D141: 0 | F141: 0.0
A142: 注册资本金 | D142: 0 | F142: 0.0
A143: 周转资金 | D143: 0 | F143: 0.0
A144: 其他铁路建设基金支出 | D144: 0 | F144: 0.0
A145: 船舶油污损害赔偿基金支出 | D145: 0 | F145: 0.0
A146: 应急处置费用 | D146: 0 | F146: 0.0
A147: 控制清除污染 | D147: 0 | F147: 0.0
A148: 损失补偿 | D148: 0 | F148: 0.0
A149: 生态恢复 | D149: 0 | F149: 0.0
A150: 监视监测 | D150: 0 | F150: 0.0
A151: 其他船舶油污损害赔偿基金支出 | D151: 0 | F151: 0.0
A152: 民航发展基金支出 | D152: 0 | F152: 0.0
A153: 民航机场建设 | D153: 0 | F153: 0.0
A154: 空管系统建设 | D154: 0 | F154: 0.0
A155: 民航安全 | D155: 0 | F155: 0.0
A156: 航线和机场补贴 | D156: 0 | F156: 0.0
A157: 民航节能减排 | D157: 0 | F157: 0.0
A158: 通用航空发展 | D158: 0 | F158: 0.0
A159: 征管经费 | D159: 0 | F159: 0.0
A160: 其他民航发展基金支出 | D160: 0 | F160: 0.0
A161: 海南省高等级公路车辆通行附加费对应专项债务收入安排的支出 | D161: 0 | F161: 0.0
A162: 公路建设 | D162: 0 | F162: 0.0
A163: 其他海南省高等级公路车辆通行附加费对应专项债务收入安排的支出 | D163: 0 | F163: 0.0
A164: 政府收费公路专项债券收入安排的支出 | D164: 0 | F164: 0.0
A165: 公路建设 | D165: 0 | F165: 0.0
A166: 其他政府收费公路专项债券收入安排的支出 | D166: 0 | F166: 0.0
A167: 车辆通行费对应专项债务收入安排的支出 | D167: 0 | F167: 0.0
A168: 港口建设费对应专项债务收入安排的支出 | D168: 0 | F168: 0.0
A169: 港口设施 | D169: 0 | F169: 0.0
A170: 航运保障系统建设 | D170: 0 | F170: 0.0
A171: 其他港口建设费对应专项债务收入安排的支出 | D171: 0 | F171: 0.0
A172: 资源勘探信息等支出 | D172: 0 | F172: 0.0
A173: 农网还贷资金支出 | D173: 0 | F173: 0.0
A174: 中央农网还贷资金支出 | D174: 0 | F174: 0.0
A175: 地方农网还贷资金支出 | D175: 0 | F175: 0.0
A176: 其他农网还贷资金支出 | D176: 0 | F176: 0.0
A177: 金融支出 | D177: 0 | F177: 0.0
A178: 金融调控支出 | D178: 0 | F178: 0.0
A179: 中央特别国债经营基金支出 | D179: 0 | F179: 0.0
A180: 中央特别国债经营基金财务支出 | D180: 0 | F180: 0.0
A181: 其他支出 | B181: 84 | C181: 215,141 | D181: 213,194 | E181: =D181/C181*100 -> 99 | F181: 6,517.7
A182: 其他政府性基金及对应专项债务收入安排的支出 | C182: 207,600 | D182: 207,600 | E182: =D182/C182*100 -> 100 | F182: 0.0
A183: 其他政府性基金安排的支出 | D183: 0 | F183: 0.0
A184: 其他地方自行试点项目收益专项债券收入安排的支出 | C184: 207,600 | D184: 207,600 | E184: =D184/C184*100 -> 100 | F184: 0.0
A185: 其他政府性基金债务收入安排的支出 | D185: 0 | F185: 0.0
A186: 彩票发行销售机构业务费安排的支出 | D186: 0 | F186: 0.0
A187: 福利彩票发行机构的业务费支出 | D187: 0 | F187: 0.0
A188: 体育彩票发行机构的业务费支出 | D188: 0 | F188: 0.0
A189: 福利彩票销售机构的业务费支出 | D189: 0 | F189: 0.0
A190: 体育彩票销售机构的业务费支出 | D190: 0 | F190: 0.0
A191: 彩票兑奖周转金支出 | D191: 0 | F191: 0.0
A192: 彩票发行销售风险基金支出 | D192: 0 | F192: 0.0
A193: 彩票市场调控资金支出 | D193: 0 | F193: 0.0
A194: 其他彩票发行销售机构业务费安排的支出 | D194: 0 | F194: 0.0
A195: 彩票公益金安排的支出 | B195: 84 | C195: 7,541 | D195: 5,594 | E195: =D195/C195*100 -> 74 | F195: 171.0
A196: 用于补充全国社会保障基金的彩票公益金支出 | D196: 0 | F196: 0.0
A197: 用于社会福利的彩票公益金支出 | C197: 4,677 | D197: 3,677 | E197: =D197/C197*100 -> 79 | F197: 233.3
A198: 用于体育事业的彩票公益金支出 | C198: 2,044 | D198: 1,544 | E198: =D198/C198*100 -> 76 | F198: 121.1
A199: 用于教育事业的彩票公益金支出 | C199: 287 | D199: 87 | E199: =D199/C199*100 -> 30 | F199: 100.0
A200: 用于红十字事业的彩票公益金支出 | C200: 0 | D200: 0 | F200: 0.0
... 66 more rows

Sheet 14.全市政府性基金收支预算平衡表
A1: 2020年攀枝花市政府性基金预算收支决算平衡表
A2: 单位：万元
A3: 项 目 | B3: 决算数 | C3: 项 目 | D3: 决算数
A4: 政府性基金预算收入 | B4: 449,445 | C4: 政府性基金预算支出 | D4: 626,227
A5: 政府性基金预算上级补助收入 | B5: 62,008 | C5: 政府性基金预算补助下级支出
A6: 政府性基金预算下级上解收入 | C6: 政府性基金预算上解上级支出
A7: 政府性基金预算上年结余 | B7: 7,597
A8: 政府性基金预算调入资金 | B8: 13,494 | C8: 政府性基金预算调出资金 | D8: 68,500
A9: 一般公共预算调入
A10: 其他调入资金 | B10: 13,494
A11: 债务收入 | C11: 债务还本支出 | D11: 75,426
C12: 地方政府专项债务还本支出 | D12: 75,426
A13: 债务转贷收入 | B13: 252,746 | C13: 债务转贷支出
A14: 地方政府专项债务转贷收入 | B14: 252,746 | C14: 政府性基金预算年终结余 | D14: 15,137
A15: 收 入 总 计 | B15: =B4+B5+B7+B8+B13 -> 785,290 | C15: 支 出 总 计 | D15: =D4+D8+D11+D14 -> 785,290

Sheet 15.市本级政府性基金收入决算表
A1: 2020年攀枝花市市本级政府性基金预算收入决算表
D2: 单位:万元，%
A3: 预算科目 | B3: 年初预算数 | C3: 变动预算数 | D3: 决算数 | E3: 为预算 | F3: 为上年决算
A4: 国有土地收益基金收入 | B4: 8,900 | C4: 8,900 | D4: 12,441 | E4: =D4/C4*100 -> 139.8 | F4: 122.5
A5: 农业土地开发资金收入 | B5: 600 | C5: 600 | D5: 733 | E5: =D5/C5*100 -> 122.2 | F5: 129.5
A6: 国有土地使用权出让收入 | B6: 175,500 | C6: 175,500 | D6: 171,895 | E6: 97.9 | F6: 215.2
A7: 城市基础设施配套费收入 | B7: 4,000 | C7: 4,000 | D7: 6,599 | E7: 165.0 | F7: 49.6
A8: 污水处理费收入 | B8: 3,500 | C8: 3,500 | D8: 900 | E8: 25.7 | F8: 29.6
A9: 其他政府性基金收入
A10: 政府性基金预算收入 | B10: =SUM(B4:B9) -> 192,500 | C10: =SUM(C4:C9) -> 192,500 | D10: =SUM(D4:D9) -> 192,568 | E10: 100.0 | F10: 180.1

Sheet 16.市本级政府性基金支出决算表
A1: 2020年攀枝花市市本级政府性基金支出决算表
D2: 单位：万元，%
A3: 科目名称 | B3: 年初预算数 | C3: 变动预算数 | D3: 决算数 | E3: 为预算 | F3: 为上年决算
A4: 科学技术支出 | C4: 0 | D4: 0
A5: 核电站乏燃料处理处置基金支出 | C5: 0 | D5: 0
A6: 乏燃料运输 | C6: 0 | D6: 0
A7: 乏燃料离堆贮存 | C7: 0 | D7: 0
A8: 乏燃料后处理 | C8: 0 | D8: 0
A9: 高放废物的处理处置 | C9: 0 | D9: 0
A10: 乏燃料后处理厂的建设、运行、改造和退役 | C10: 0 | D10: 0
A11: 其他乏燃料处理处置基金支出 | C11: 0 | D11: 0
A12: 文化旅游体育与传媒支出 | C12: 0 | D12: 0
A13: 国家电影事业发展专项资金安排的支出 | C13: 0 | D13: 0
A14: 资助国产影片放映 | C14: 0 | D14: 0
A15: 资助影院建设 | C15: 0 | D15: 0
A16: 资助少数民族语电影译制 | C16: 0 | D16: 0
A17: 其他国家电影事业发展专项资金支出 | C17: 0 | D17: 0
A18: 旅游发展基金支出 | C18: 0 | D18: 0
A19: 宣传促销 | C19: 0 | D19: 0
A20: 行业规划 | C20: 0 | D20: 0
A21: 旅游事业补助 | C21: 0 | D21: 0
A22: 地方旅游开发项目补助 | C22: 0 | D22: 0
A23: 其他旅游发展基金支出 | C23: 0 | D23: 0
A24: 国家电影事业发展专项资金对应专项债务收入安排的支出 | C24: 0 | D24: 0
A25: 资助城市影院 | C25: 0 | D25: 0
A26: 其他国家电影事业发展专项资金对应专项债务收入支出 | C26: 0 | D26: 0
A27: 社会保障和就业支出 | B27: 112 | C27: 0 | D27: 0
A28: 大中型水库移民后期扶持基金支出 | B28: 112 | C28: 0 | D28: 0
A29: 移民补助 | B29: 112 | C29: 0 | D29: 0
A30: 基础设施建设和经济发展 | C30: 0 | D30: 0
A31: 其他大中型水库移民后期扶持基金支出 | C31: 0 | D31: 0
A32: 小型水库移民扶助基金安排的支出 | C32: 0 | D32: 0
A33: 移民补助 | C33: 0 | D33: 0
A34: 基础设施建设和经济发展 | C34: 0 | D34: 0
A35: 其他小型水库移民扶助基金支出 | C35: 0 | D35: 0
A36: 小型水库移民扶助基金对应专项债务收入安排的支出 | C36: 0 | D36: 0
A37: 基础设施建设和经济发展 | C37: 0 | D37: 0
A38: 其他小型水库移民扶助基金对应专项债务收入安排的支出 | C38: 0 | D38: 0
A39: 节能环保支出 | C39: 0 | D39: 0
A40: 可再生能源电价附加收入安排的支出 | C40: 0 | D40: 0
A41: 风力发电补助 | C41: 0 | D41: 0
A42: 太阳能发电补助 | C42: 0 | D42: 0
A43: 生物质能发电补助 | C43: 0 | D43: 0
A44: 其他可再生能源电价附加收入安排的支出 | C44: 0 | D44: 0
A45: 废弃电器电子产品处理基金支出 | C45: 0 | D45: 0
A46: 回收处理费用补贴 | C46: 0 | D46: 0
A47: 信息系统建设 | C47: 0 | D47: 0
A48: 基金征管经费 | C48: 0 | D48: 0
A49: 其他废弃电器电子产品处理基金支出 | C49: 0 | D49: 0
A50: 城乡社区支出 | B50: 141,254 | C50: 132,792 | D50: 123,493 | E50: =D50/C50*100 -> 93.0 | F50: 100.9
A51: 国有土地使用权出让收入安排的支出 | B51: 124,254 | C51: 111,018 | D51: 109,639 | E51: =D51/C51*100 -> 98.8 | F51: 101.2
A52: 征地和拆迁补偿支出 | C52: 0 | D52: 0 | F52: 0.0
A53: 土地开发支出 | B53: 124,254 | C53: =1379+101997 -> 103,376 | D53: 101,997 | E53: =D53/C53*100 -> 98.7 | F53: 115.4
A54: 城市建设支出 | C54: 0 | D54: 0 | F54: 0.0
A55: 农村基础设施建设支出 | C55: 0 | D55: 0 | F55: 0.0
A56: 补助被征地农民支出 | C56: 0 | D56: 0 | F56: 0.0
A57: 土地出让业务支出 | C57: 0 | D57: 0 | F57: 0.0
A58: 廉租住房支出 | C58: 0 | D58: 0 | F58: 0.0
A59: 支付破产或改制企业职工安置费 | C59: 0 | D59: 0 | F59: 0.0
A60: 棚户区改造支出 | C60: 7,642 | D60: 7,642 | E60: =D60/C60*100 -> 100.0 | F60: 166.6
A61: 公共租赁住房支出 | C61: 0 | D61: 0 | F61: 0.0
A62: 保障性住房租金补贴 | C62: 0 | D62: 0 | F62: 0.0
A63: 其他国有土地使用权出让收入安排的支出 | C63: 0 | D63: 0 | F63: 0.0
A64: 国有土地收益基金安排的支出 | B64: 8,900 | C64: 12,441 | D64: 8,900 | E64: =D64/C64*100 -> 71.5 | F64: 87.6
A65: 征地和拆迁补偿支出 | C65: 0 | D65: 0 | F65: 0.0
A66: 土地开发支出 | B66: 8,900 | C66: 12,441 | D66: 8,900 | E66: =D66/C66*100 -> 71.5 | F66: 87.6
A67: 其他国有土地收益基金支出 | C67: 0 | D67: 0 | F67: 0.0
A68: 农业土地开发资金安排的支出 | B68: 600 | C68: 1,438 | D68: 120 | E68: =D68/C68*100 -> 8.3 | F68: 0.0
A69: 城市基础设施配套费安排的支出 | B69: 4,000 | C69: 6,995 | D69: 3,934 | E69: =D69/C69*100 -> 56.2 | F69: 438.1
A70: 城市公共设施 | D70: 0 | F70: 0.0
A71: 城市环境卫生 | C71: 0 | D71: 0 | F71: 0.0
A72: 公有房屋 | C72: 0 | D72: 0 | F72: 0.0
A73: 城市防洪 | C73: 0 | D73: 0 | F73: 0.0
A74: 其他城市基础设施配套费安排的支出 | B74: 4,000 | C74: 6,995 | D74: 3,934 | E74: =D74/C74*100 -> 56.2 | F74: 438.1
A75: 污水处理费安排的支出 | C75: 900 | D75: 900 | E75: =D75/C75*100 -> 100.0 | F75: 29.6
A76: 污水处理设施建设和运营 | C76: 0 | D76: 0 | F76: 0.0
A77: 代征手续费 | D77: 0 | F77: 0.0
A78: 其他污水处理费安排的支出 | C78: 900 | D78: 900 | E78: =D78/C78*100 -> 100.0 | F78: 30.8
A79: 土地储备专项债券收入安排的支出 | C79: 0 | D79: 0 | F79: 0.0
A80: 征地和拆迁补偿支出 | C80: 0 | D80: 0 | F80: 0.0
A81: 土地开发支出 | C81: 0 | D81: 0 | F81: 0.0
A82: 其他土地储备专项债券收入安排的支出 | C82: 0 | D82: 0 | F82: 0.0
A83: 棚户区改造专项债券收入安排的支出 | C83: 0 | D83: 0 | F83: 0.0
A84: 征地和拆迁补偿支出 | C84: 0 | D84: 0 | F84: 0.0
A85: 土地开发支出 | C85: 0 | D85: 0 | F85: 0.0
A86: 其他棚户区改造专项债券收入安排的支出 | C86: 0 | D86: 0 | F86: 0.0
A87: 城市基础设施配套费对应专项债务收入安排的支出 | C87: 0 | D87: 0 | F87: 0.0
A88: 城市公共设施 | C88: 0 | D88: 0 | F88: 0.0
A89: 城市环境卫生 | C89: 0 | D89: 0 | F89: 0.0
A90: 公有房屋 | C90: 0 | D90: 0 | F90: 0.0
A91: 城市防洪 | C91: 0 | D91: 0 | F91: 0.0
A92: 其他城市基础设施配套费对应专项债务收入安排的支出 | C92: 0 | D92: 0 | F92: 0.0
A93: 污水处理费对应专项债务收入安排的支出 | B93: 3,500 | C93: 0 | D93: 0 | F93: 0.0
A94: 污水处理设施建设和运营 | C94: 0 | D94: 0 | F94: 0.0
A95: 其他污水处理费对应专项债务收入安排的支出 | B95: 3,500 | C95: 0 | D95: 0 | F95: 0.0
A96: 农林水支出 | B96: 360 | C96: 10 | D96: 10 | E96: =D96/C96*100 -> 100 | F96: 0.0
A97: 大中型水库库区基金安排的支出 | B97: 360 | C97: 10 | D97: 10 | E97: =D97/C97*100 -> 100 | F97: 0.0
A98: 基础设施建设和经济发展 | C98: 10 | D98: 10 | E98: =D98/C98*100 -> 100 | F98: 0.0
A99: 解决移民遗留问题 | C99: 0 | D99: 0 | F99: 0.0
A100: 库区防护工程维护 | C100: 0 | D100: 0 | F100: 0.0
A101: 其他大中型水库库区基金支出 | B101: 360 | C101: 0 | D101: 0 | F101: 0.0
A102: 三峡水库库区基金支出 | C102: 0 | D102: 0 | F102: 0.0
A103: 基础设施建设和经济发展 | C103: 0 | D103: 0 | F103: 0.0
A104: 解决移民遗留问题 | C104: 0 | D104: 0 | F104: 0.0
A105: 库区维护和管理 | C105: 0 | D105: 0 | F105: 0.0
A106: 其他三峡水库库区基金支出 | C106: 0 | D106: 0 | F106: 0.0
A107: 国家重大水利工程建设基金安排的支出 | C107: 0 | D107: 0 | F107: 0.0
A108: 南水北调工程建设 | C108: 0 | D108: 0 | F108: 0.0
A109: 三峡后续工作 | C109: 0 | D109: 0 | F109: 0.0
A110: 地方重大水利工程建设 | C110: 0 | D110: 0 | F110: 0.0
A111: 其他重大水利工程建设基金支出 | C111: 0 | D111: 0 | F111: 0.0
A112: 大中型水库库区基金对应专项债务收入安排的支出 | C112: 0 | D112: 0 | F112: 0.0
A113: 基础设施建设和经济发展 | C113: 0 | D113: 0 | F113: 0.0
A114: 其他大中型水库库区基金对应专项债务收入支出 | C114: 0 | D114: 0 | F114: 0.0
A115: 国家重大水利工程建设基金对应专项债务收入安排的支出 | C115: 0 | D115: 0 | F115: 0.0
A116: 南水北调工程建设 | C116: 0 | D116: 0 | F116: 0.0
A117: 三峡工程后续工作 | C117: 0 | D117: 0 | F117: 0.0
A118: 地方重大水利工程建设 | C118: 0 | D118: 0 | F118: 0.0
A119: 其他重大水利工程建设基金对应专项债务收入支出 | C119: 0 | D119: 0 | F119: 0.0
A120: 交通运输支出 | C120: 0 | D120: 0 | F120: 0.0
A121: 海南省高等级公路车辆通行附加费安排的支出 | C121: 0 | D121: 0 | F121: 0.0
A122: 公路建设 | C122: 0 | D122: 0 | F122: 0.0
A123: 公路养护 | C123: 0 | D123: 0 | F123: 0.0
A124: 公路还贷 | C124: 0 | D124: 0 | F124: 0.0
A125: 其他海南省高等级公路车辆通行附加费安排的支出 | C125: 0 | D125: 0 | F125: 0.0
A126: 车辆通行费安排的支出 | C126: 0 | D126: 0 | F126: 0.0
A127: 公路还贷 | C127: 0 | D127: 0 | F127: 0.0
A128: 政府还贷公路养护 | C128: 0 | D128: 0 | F128: 0.0
A129: 政府还贷公路管理 | C129: 0 | D129: 0 | F129: 0.0
A130: 其他车辆通行费安排的支出 | C130: 0 | D130: 0 | F130: 0.0
A131: 港口建设费安排的支出 | C131: 0 | D131: 0 | F131: 0.0
A132: 港口设施 | C132: 0 | D132: 0 | F132: 0.0
A133: 航道建设和维护 | C133: 0 | D133: 0 | F133: 0.0
A134: 航运保障系统建设 | C134: 0 | D134: 0 | F134: 0.0
A135: 其他港口建设费安排的支出 | C135: 0 | D135: 0 | F135: 0.0
A136: 铁路建设基金支出 | C136: 0 | D136: 0 | F136: 0.0
A137: 铁路建设投资 | C137: 0 | D137: 0 | F137: 0.0
A138: 购置铁路机车车辆 | C138: 0 | D138: 0 | F138: 0.0
A139: 铁路还贷 | C139: 0 | D139: 0 | F139: 0.0
A140: 建设项目铺底资金 | C140: 0 | D140: 0 | F140: 0.0
A141: 勘测设计 | C141: 0 | D141: 0 | F141: 0.0
A142: 注册资本金 | C142: 0 | D142: 0 | F142: 0.0
A143: 周转资金 | C143: 0 | D143: 0 | F143: 0.0
A144: 其他铁路建设基金支出 | C144: 0 | D144: 0 | F144: 0.0
A145: 船舶油污损害赔偿基金支出 | C145: 0 | D145: 0 | F145: 0.0
A146: 应急处置费用 | C146: 0 | D146: 0 | F146: 0.0
A147: 控制清除污染 | C147: 0 | D147: 0 | F147: 0.0
A148: 损失补偿 | C148: 0 | D148: 0 | F148: 0.0
A149: 生态恢复 | C149: 0 | D149: 0 | F149: 0.0
A150: 监视监测 | C150: 0 | D150: 0 | F150: 0.0
A151: 其他船舶油污损害赔偿基金支出 | C151: 0 | D151: 0 | F151: 0.0
A152: 民航发展基金支出 | C152: 0 | D152: 0 | F152: 0.0
A153: 民航机场建设 | C153: 0 | D153: 0 | F153: 0.0
A154: 空管系统建设 | C154: 0 | D154: 0 | F154: 0.0
A155: 民航安全 | C155: 0 | D155: 0 | F155: 0.0
A156: 航线和机场补贴 | C156: 0 | D156: 0 | F156: 0.0
A157: 民航节能减排 | C157: 0 | D157: 0 | F157: 0.0
A158: 通用航空发展 | C158: 0 | D158: 0 | F158: 0.0
A159: 征管经费 | C159: 0 | D159: 0 | F159: 0.0
A160: 其他民航发展基金支出 | C160: 0 | D160: 0 | F160: 0.0
A161: 海南省高等级公路车辆通行附加费对应专项债务收入安排的支出 | C161: 0 | D161: 0 | F161: 0.0
A162: 公路建设 | C162: 0 | D162: 0 | F162: 0.0
A163: 其他海南省高等级公路车辆通行附加费对应专项债务收入安排的支出 | C163: 0 | D163: 0 | F163: 0.0
A164: 政府收费公路专项债券收入安排的支出 | C164: 0 | D164: 0 | F164: 0.0
A165: 公路建设 | C165: 0 | D165: 0 | F165: 0.0
A166: 其他政府收费公路专项债券收入安排的支出 | C166: 0 | D166: 0 | F166: 0.0
A167: 车辆通行费对应专项债务收入安排的支出 | C167: 0 | D167: 0 | F167: 0.0
A168: 港口建设费对应专项债务收入安排的支出 | C168: 0 | D168: 0 | F168: 0.0
A169: 港口设施 | C169: 0 | D169: 0 | F169: 0.0
A170: 航运保障系统建设 | C170: 0 | D170: 0 | F170: 0.0
A171: 其他港口建设费对应专项债务收入安排的支出 | C171: 0 | D171: 0 | F171: 0.0
A172: 资源勘探工业信息等支出 | C172: 0 | D172: 0 | F172: 0.0
A173: 农网还贷资金支出 | C173: 0 | D173: 0 | F173: 0.0
A174: 中央农网还贷资金支出 | C174: 0 | D174: 0 | F174: 0.0
A175: 地方农网还贷资金支出 | C175: 0 | D175: 0 | F175: 0.0
A176: 其他农网还贷资金支出 | C176: 0 | D176: 0 | F176: 0.0
A177: 金融支出 | C177: 0 | D177: 0 | F177: 0.0
A178: 金融调控支出 | C178: 0 | D178: 0 | F178: 0.0
A179: 中央特别国债经营基金支出 | C179: 0 | D179: 0 | F179: 0.0
A180: 中央特别国债经营基金财务支出 | C180: 0 | D180: 0 | F180: 0.0
A181: 其他支出 | C181: 151,837 | D181: 150,285 | E181: =D181/C181*100 -> 99.0 | F181: 8519.6
A182: 其他政府性基金及对应专项债务收入安排的支出 | C182: 147,700 | D182: 147,700 | E182: =D182/C182*100 -> 100.0 | F182: 0.0
A183: 其他政府性基金安排的支出 | C183: 0 | D183: 0 | F183: 0.0
A184: 其他地方自行试点项目收益专项债券收入安排的支出 | C184: 147,700 | D184: 147,700 | E184: =D184/C184*100 -> 100.0 | F184: 0.0
A185: 其他政府性基金债务收入安排的支出 | C185: 0 | D185: 0 | F185: 0.0
A186: 彩票发行销售机构业务费安排的支出 | C186: 0 | D186: 0 | F186: 0.0
A187: 福利彩票发行机构的业务费支出 | C187: 0 | D187: 0 | F187: 0.0
A188: 体育彩票发行机构的业务费支出 | C188: 0 | D188: 0 | F188: 0.0
A189: 福利彩票销售机构的业务费支出 | C189: 0 | D189: 0 | F189: 0.0
A190: 体育彩票销售机构的业务费支出 | C190: 0 | D190: 0 | F190: 0.0
A191: 彩票兑奖周转金支出 | C191: 0 | D191: 0 | F191: 0.0
A192: 彩票发行销售风险基金支出 | C192: 0 | D192: 0 | F192: 0.0
A193: 彩票市场调控资金支出 | C193: 0 | D193: 0 | F193: 0.0
A194: 其他彩票发行销售机构业务费安排的支出 | C194: 0 | D194: 0 | F194: 0.0
A195: 彩票公益金安排的支出 | C195: 4,137 | D195: 2,585 | E195: =D195/C195*100 -> 62.5 | F195: 146.5
A196: 用于补充全国社会保障基金的彩票公益金支出 | C196: 0 | D196: 0 | F196: 0.0
A197: 用于社会福利的彩票公益金支出 | C197: 2,000 | D197: 1,321 | E197: =D197/C197*100 -> 66.1 | F197: 165.1
A198: 用于体育事业的彩票公益金支出 | C198: =2483-356 -> 2,127 | D198: 1,264 | E198: =D198/C198*100 -> 59.4 | F198: 132.5
A199: 用于教育事业的彩票公益金支出 | C199: 0 | D199: 0 | F199: 0.0
A200: 用于红十字事业的彩票公益金支出 | C200: 0 | D200: 0 | F200: 0.0
... 66 more rows

Sheet 17.市本级政府性基金收支预算平衡表
A1: 2020年攀枝花市市本级政府性基金预算收支决算平衡表
A2: 单位：万元
A3: 项 目 | B3: 决算数 | C3: 项 目 | D3: 决算数
A4: 政府性基金预算收入 | B4: 192,568 | C4: 政府性基金预算支出 | D4: 308,815
A5: 政府性基金预算上级补助收入 | B5: 45,045 | C5: 政府性基金预算补助下级支出 | D5: 32,540
A6: 政府性基金预算下级上解收入 | C6: 政府性基金预算上解上级支出
A7: 政府性基金预算上年结余 | B7: 6,673
A8: 政府性基金预算调入资金 | C8: 政府性基金预算调出资金 | D8: 30,000
A9: 一般公共预算调入
A10: 其他调入资金
A11: 债务收入 | C11: 债务还本支出 | D11: 24,500
C12: 地方政府专项债务还本支出 | D12: 24,500
A13: 债务转贷收入 | B13: 239,546 | C13: 债务转贷支出 | D13: 77,126
A14: 地方政府专项债务转贷收入 | B14: 239,546 | C14: 政府性基金预算年终结余 | D14: 10,851
A15: 收 入 总 计 | B15: =B13+B7+B4+B8+B5 -> 483,832 | C15: 支 出 总 计 | D15: =D14+D13+D11+D8+D5+D4 -> 483,832

Sheet 18.省对市政府性基金转移支付补助决算表
A1: 2020年省对市政府性基金预算转移支付补助决算表
B2: 单位：万元
A3: 项 目 | B3: 决算数
A4: 政府性基金上级补助收入 | B4: =B5+B10 -> 62,008
A5: 政府性基金转移支付收入 | B5: 7,008
A6: 国家电影事业发展专项资金相关收入 | B6: 261
A7: 大中型水库移民后期扶持基金收入 | B7: 2,181
A8: 大中型水库库区基金收入 | B8: 1,121
A9: 彩票公益金收入 | B9: =4158-713 -> 3,445
A10: 抗疫特别国债转移支付收入 | B10: 55,000

Sheet 19.市对区政府性基金转移支付补助决算表
A1: 2020年市对区政府性基金预算转移支付补助决算表
B2: 单位：万元
A3: 项 目 | B3: 决算数
A4: 政府性基金市对区补助支出 | B4: =B5+B10 -> 32,540
A5: 政府性基金转移支付收入 | B5: 14,340
A6: 国家电影事业发展专项资金相关收入 | B6: 540
A7: 大中型水库移民后期扶持基金收入 | B7: 4,460
A8: 大中型水库库区基金收入 | B8: 2,290
A9: 彩票公益金收入 | B9: 7,050
A10: 抗疫特别国债转移支付收入 | B10: 18,200

Sheet 20.2020年攀枝花市市本级重大政府投资项目表
A1: 2020年攀枝花市市本级重大政府投资项目表
C2: 单位：万元
A3: 项目名称 | B3: 决算数 | C3: 项目概况
A4: 攀枝花市钒钛高新区污水集中处理厂提标改造及配套管网项目 | B4: 17,500 | C4: 新建废水管道23公里，计划总投资4.43亿元，实现排水企业工业废水全收集，日处理废水能力从2.5万立方米提升至6万立方米。项目于2019年启动，2020年汇总组装分散件，完善各工艺段设备附属设施，项目进入调试阶段。
A5: 攀枝花市攀西钒钛科技产业园项目 | B5: 40,000 | C5: 总建筑面积约15万平方米，计划总投资15亿元，主要包括：国家级重点实验室、钒钛标准化检验检测中心、钒钛产业总部。项目于2020年启动，科技总部办公园区基础土石方开挖累计完成408743立方米；边坡支护累计完成11800平方米；回填区地下室桩基累计完成198根，桩基施工累计完成5962米，桩基钻孔完成70根，桩基旋挖钻孔完成213根，桩基注浆完成60根，累计注浆量为78.35吨；炳仁线停车场基础土石方开挖累计完成56000立方米，边坡支护累计完成1880平方米；地下室独立基础承台土石方开挖累计完成2200立方米。
A6: 攀枝花市政务服务中心项目 | B6: 10,606 | C6: 总建筑面积约13.9万平方米，计划总投资11.8亿元，主要包括新政务服务中心和城市展示中心。项目于2016年启动，一期工程2020年进入运营期，二期工程2020年竣工。
A7: 攀枝花市火车南站前基础设施项目 | B7: 28,039 | C7: 站前交通枢纽总建筑面积约4.4万平方米，站前道路总长度约7.5千米，站前排洪设施总长度为4.14千米，计划总投资19.8亿元。项目于2016年启动,2020年进入运营期。
A8: 攀枝花市观音岩引水工程项目 | B8: 31,000 | C8: 引水管干支线总长79.47公里，计划总投资18.67亿元，覆盖主城区13个水厂，日供水量70万吨，年供水能力2.52亿立方米。项目于2015年启动，2020年观音岩引水工程实现管线全线贯通，完成全线9个水厂通水任务，正在实施密地管桥、渡金线涉路段道路等项目建设。

Sheet 21.全市国有资本经营预算收支决算表
A1: 2020年攀枝花市国有资本经营预算收支决算平衡表
C2: 单位：万元
A3: 预算科目 | B3: 决算数 | C3: 预算科目 | D3: 决算数
A4: 利润收入 | B4: 4,655 | C4: 社会保障和就业支出
A5: 股利、股息收入 | B5: 445 | C5: 补充全国社会保障基金
A6: 产权转让收入 | C6: 国有资本经营预算补充社保基金支出
A7: 清算收入 | C7: 国有资本经营预算支出 | D7: =D8+D18+D27+D29+D33 -> 3,500
A8: 其他国有资本经营预算收入 | C8: 解决历史遗留问题及改革成本支出 | D8: =D13+D15 -> 1,740
C9: 厂办大集体改革支出
C10: "三供一业"移交补助支出
C11: 国有企业办职教幼教补助支出
C12: 国有企业办公共服务机构移交补助支出
C13: 国有企业退休人员社会化管理补助支出 | D13: 1,553
C14: 国有企业棚户区改造支出
C15: 国有企业改革成本支出 | D15: 187
C16: 离休干部医药费补助支出
C17: 其他解决历史遗留问题及改革成本支出
C18: 国有企业资本金注入
C19: 国有经济结构调整支出
C20: 公益性设施投资支出
C21: 前瞻性战略性产业发展支出
C22: 生态环境保护支出
C23: 支持科技进步支出
C24: 保障国家经济安全支出
C25: 对外投资合作支出
C26: 其他国有企业资本金注入
C27: 国有企业政策性补贴(款) | D27: =D28 -> 1,520
C28: 国有企业政策性补贴(项) | D28: 1,520
C29: 金融国有资本经营预算支出
C30: 资本性支出
C31: 改革性支出
C32: 其他金融国有资本经营预算支出
C33: 其他国有资本经营预算支出(款) | D33: =D34 -> 240
C34: 其他国有资本经营预算支出(项) | D34: 240
A35: 国有资本经营预算收入 | B35: 5,100 | C35: 国有资本经营预算支出 | D35: =D7+D4 -> 3,500
A36: 转移性收入 | B36: 1,553 | C36: 转移性支出 | D36: 3,145
A37: 调入资金 | C37: 国有资本经营预算调出资金
C38: 国有资本经营预算年终结余 | D38: 8
A39: 收入合计 | B39: =B35+B36 -> 6,653 | C39: 支出总计 | D39: =D37+D35+D36+D38 -> 6,653

Sheet 22.市本级国有资本经营预算收支决算表
A1: 2020年攀枝花市市本级国有资本经营预算收支决算平衡表
C2: 单位：万元
A3: 预算科目 | B3: 决算数 | C3: 预算科目 | D3: 决算数
A4: 利润收入 | B4: 2,970 | C4: 社会保障和就业支出
A5: 股利、股息收入 | B5: 445 | C5: 补充全国社会保障基金
A6: 产权转让收入 | C6: 国有资本经营预算补充社保基金支出
A7: 清算收入 | C7: 国有资本经营预算支出 | D7: =D8+D18+D27+D29+D33 -> 1,707
A8: 其他国有资本经营预算收入 | C8: 解决历史遗留问题及改革成本支出 | D8: =SUM(D9:D17) -> 187
C9: 厂办大集体改革支出
C10: "三供一业"移交补助支出
C11: 国有企业办职教幼教补助支出
C12: 国有企业办公共服务机构移交补助支出
C13: 国有企业退休人员社会化管理补助支出
C14: 国有企业棚户区改造支出
C15: 国有企业改革成本支出 | D15: 187
C16: 离休干部医药费补助支出
C17: 其他解决历史遗留问题及改革成本支出
C18: 国有企业资本金注入
C19: 国有经济结构调整支出
C20: 公益性设施投资支出
C21: 前瞻性战略性产业发展支出
C22: 生态环境保护支出
C23: 支持科技进步支出
C24: 保障国家经济安全支出
C25: 对外投资合作支出
C26: 其他国有企业资本金注入
C27: 国有企业政策性补贴(款) | D27: =D28 -> 1,520
C28: 国有企业政策性补贴(项) | D28: 1,520
C29: 金融国有资本经营预算支出
C30: 资本性支出
C31: 改革性支出
C32: 其他金融国有资本经营预算支出
C33: 其他国有资本经营预算支出(款)
C34: 其他国有资本经营预算支出(项)
A35: 国有资本经营预算收入 | B35: 3,415 | C35: 国有资本经营预算支出 | D35: =D4+D7 -> 1,707
A36: 转移性收入 | B36: 1,553 | C36: 转移性支出 | D36: 1,553
A37: 调入资金 | C37: 国有资本经营预算调出资金 | D37: 1,700
C38: 国有资本经营预算年终结余 | D38: 8
A39: 收入合计 | B39: =B35+B36+B37 -> 4,968 | C39: 支出总计 | D39: =D37+D35+D36+D38 -> 4,968

Sheet 23.全市及市本级社会保险基金收支平衡表
A1: 2020年攀枝花市及市本级社会保险基金收支决算平衡表
F2: 单位：万元
A3: 预算科目 | B3: 全市 | C3: 市级 | D3: 预算科目 | E3: 全市 | F3: 市级
A4: 社会保险基金收入 | B4: =SUM(B5:B10) -> 283,197 | C4: =SUM(C5:C10) -> 283,197 | D4: 社会保险基金支出 | E4: =SUM(E5:E10) -> 292,536 | F4: =SUM(F5:F10) -> 292,536
A5: 企业职工基本养老保险基金收入 | D5: 企业职工基本养老保险基金支出
A6: 城乡居民基本养老保险基金收入 | B6: 18,328 | C6: 18,328 | D6: 城乡居民基本养老保险基金支出 | E6: 11,028 | F6: 11,028
A7: 职工基本医疗保险(含生育保险）基金收入 | B7: 183,649 | C7: 183,649 | D7: 职工基本医疗保险基金支出 | E7: 183,050 | F7: 183,050
A8: 城乡居民基本医疗保险基金收入 | B8: 57,591 | C8: 57,591 | D8: 城乡居民基本医疗保险基金支出 | E8: 56,315 | F8: 56,315
A9: 工伤保险基金收入 | B9: 10,993 | C9: 10,993 | D9: 工伤保险基金支出 | E9: 17,819 | F9: 17,819
A10: 失业保险基金收入 | B10: 12,636 | C10: 12,636 | D10: 失业保险基金支出 | E10: 24,324 | F10: 24,324
A11: 上年结余收入 | B11: 222,263 | C11: 222,263 | D11: 年终结余 | E11: 212,924 | F11: 212,924
A12: 社会保险基金总收入 | B12: =B11+B4 -> 505,460 | C12: =C11+C4 -> 505,460 | D12: 社会保险基金总支出 | E12: =E11+E4 -> 505,460 | F12: =F11+F4 -> 505,460

Sheet 24.市对区一般公共预算专项转移支付决算表（分科目）
A1: 2020年市对区一般公共预算专项转移支付决算表（分科目）
B2: 单位：万元
A3: 预算科目 | B3: 金 额
A4: 一般公共服务支出 | B4: 935
A5: 人大事务 | B5: 36
A6: 政协事务 | B6: 0
A7: 政府办公厅(室)及相关机构事务 | B7: 0
A8: 发展与改革事务 | B8: 0
A9: 统计信息事务 | B9: 283
A10: 财政事务 | B10: 6
A11: 税收事务 | B11: 0
A12: 审计事务 | B12: 0
A13: 海关事务 | B13: 0
A14: 人力资源事务 | B14: 6
A15: 纪检监察事务 | B15: 0
A16: 商贸事务 | B16: 28
A17: 知识产权事务 | B17: 55
A18: 民族事务 | B18: 120
A19: 港澳台事务 | B19: 0
A20: 档案事务 | B20: 0
A21: 民主党派及工商联事务 | B21: 0
A22: 群众团体事务 | B22: 7
A23: 党委办公厅(室)及相关机构事务 | B23: 0
A24: 组织事务 | B24: 0
A25: 宣传事务 | B25: 0
A26: 统战事务 | B26: 0
A27: 对外联络事务 | B27: 0
A28: 其他共产党事务支出 | B28: 0
A29: 网信事务 | B29: 0
A30: 市场监督管理事务 | B30: 274
A31: 其他一般公共服务支出 | B31: 120
A32: 外交支出 | B32: 0
A33: 外交管理事务 | B33: 0
A34: 驻外机构 | B34: 0
A35: 对外援助 | B35: 0
A36: 国际组织 | B36: 0
A37: 对外合作与交流 | B37: 0
A38: 对外宣传 | B38: 0
A39: 边界勘界联检 | B39: 0
A40: 国际发展合作 | B40: 0
A41: 其他外交支出 | B41: 0
A42: 国防支出 | B42: 0
A43: 现役部队 | B43: 0
A44: 国防科研事业 | B44: 0
A45: 专项工程 | B45: 0
A46: 国防动员 | B46: 0
A47: 其他国防支出 | B47: 0
A48: 公共安全支出 | B48: 500
A49: 武装警察部队 | B49: 0
A50: 公安 | B50: 9
A51: 国家安全 | B51: 0
A52: 检察 | B52: 10
A53: 法院 | B53: 20
A54: 司法 | B54: 0
A55: 监狱 | B55: 0
A56: 强制隔离戒毒 | B56: 0
A57: 国家保密 | B57: 0
A58: 缉私警察 | B58: 0
A59: 其他公共安全支出 | B59: 461
A60: 教育支出 | B60: 1,540
A61: 教育管理事务 | B61: 0
A62: 普通教育 | B62: 278
A63: 职业教育 | B63: 3
A64: 成人教育 | B64: 0
A65: 广播电视教育 | B65: 0
A66: 留学教育 | B66: 0
A67: 特殊教育 | B67: 0
A68: 进修及培训 | B68: 0
A69: 教育费附加安排的支出 | B69: 259
A70: 其他教育支出 | B70: 1,000
A71: 科学技术支出 | B71: 7,322
A72: 科学技术管理事务 | B72: 0
A73: 基础研究 | B73: 0
A74: 应用研究 | B74: 0
A75: 技术研究与开发 | B75: 6,570
A76: 科技条件与服务 | B76: 50
A77: 社会科学 | B77: 0
A78: 科学技术普及 | B78: 0
A79: 科技交流与合作 | B79: 0
A80: 科技重大项目 | B80: 672
A81: 其他科学技术支出 | B81: 30
A82: 文化旅游体育与传媒支出 | B82: 269
A83: 文化和旅游 | B83: 252
A84: 文物 | B84: 0
A85: 体育 | B85: 6
A86: 新闻出版电影 | B86: 0
A87: 广播电视 | B87: 0
A88: 其他文化旅游体育与传媒支出 | B88: 11
A89: 社会保障和就业支出 | B89: 2,125
A90: 人力资源和社会保障管理事务 | B90: 0
A91: 民政管理事务 | B91: 0
A92: 补充全国社会保障基金 | B92: 0
A93: 行政事业单位养老支出 | B93: 3
A94: 企业改革补助 | B94: 1,140
A95: 就业补助 | B95: 0
A96: 抚恤 | B96: 0
A97: 退役安置 | B97: -11
A98: 社会福利 | B98: 330
A99: 残疾人事业 | B99: 456
A100: 红十字事业 | B100: 0
A101: 最低生活保障 | B101: 0
A102: 临时救助 | B102: 0
A103: 特困人员救助供养 | B103: 0
A104: 补充道路交通事故社会救助基金 | B104: 0
A105: 其他生活救助 | B105: 0
A106: 财政对基本养老保险基金的补助 | B106: 0
A107: 财政对其他社会保险基金的补助 | B107: 0
A108: 退役军人管理事务 | B108: 0
A109: 其他社会保障和就业支出 | B109: 207
A110: 卫生健康支出 | B110: 639
A111: 卫生健康管理事务 | B111: 0
A112: 公立医院 | B112: 0
A113: 基层医疗卫生机构 | B113: 239
A114: 公共卫生 | B114: 578
A115: 中医药 | B115: 0
A116: 计划生育事务 | B116: 0
A117: 行政事业单位医疗 | B117: 0
A118: 财政对基本医疗保险基金的补助 | B118: 0
A119: 医疗救助 | B119: -238
A120: 优抚对象医疗 | B120: 0
A121: 医疗保障管理事务 | B121: 60
A122: 老龄卫生健康事务 | B122: 0
A123: 其他卫生健康支出 | B123: 0
A124: 节能环保支出 | B124: 3,099
A125: 环境保护管理事务 | B125: 0
A126: 环境监测与监察 | B126: 0
A127: 污染防治 | B127: 1,099
A128: 自然生态保护 | B128: 0
A129: 天然林保护 | B129: 0
A130: 退耕还林还草 | B130: 0
A131: 风沙荒漠治理 | B131: 0
A132: 退牧还草 | B132: 0
A133: 已垦草原退耕还草 | B133: 0
A134: 能源节约利用 | B134: 0
A135: 污染减排 | B135: 0
A136: 可再生能源 | B136: 0
A137: 循环经济 | B137: 0
A138: 能源管理事务 | B138: 0
A139: 其他节能环保支出 | B139: 2,000
A140: 城乡社区支出 | B140: 12,270
A141: 城乡社区管理事务 | B141: 0
A142: 城乡社区规划与管理 | B142: 0
A143: 城乡社区公共设施 | B143: 1,435
A144: 城乡社区环境卫生 | B144: 5,464
A145: 建设市场管理与监督 | B145: 682
A146: 其他城乡社区支出 | B146: 4,689
A147: 农林水支出 | B147: 3,338
A148: 农业农村 | B148: 644
A149: 林业和草原 | B149: 0
A150: 水利 | B150: 49
A151: 扶贫 | B151: 870
A152: 农村综合改革 | B152: 1,687
A153: 普惠金融发展支出 | B153: 82
A154: 目标价格补贴 | B154: 0
A155: 其他农林水支出 | B155: 6
A156: 交通运输支出 | B156: 2,321
A157: 公路水路运输 | B157: 1,993
A158: 铁路运输 | B158: 0
A159: 民用航空运输 | B159: 0
A160: 成品油价格改革对交通运输的补贴 | B160: 328
A161: 邮政业支出 | B161: 0
A162: 车辆购置税支出 | B162: 0
A163: 其他交通运输支出 | B163: 0
A164: 资源勘探工业信息等支出 | B164: 1,169
A165: 资源勘探开发 | B165: 0
A166: 制造业 | B166: 1,169
A167: 建筑业 | B167: 0
A168: 工业和信息产业监管 | B168: 0
A169: 国有资产监管 | B169: 0
A170: 支持中小企业发展和管理支出 | B170: 0
A171: 其他资源勘探工业信息等支出 | B171: 0
A172: 商业服务业等支出 | B172: 1,000
A173: 商业流通事务 | B173: 0
A174: 涉外发展服务支出 | B174: 0
A175: 其他商业服务业等支出 | B175: 1,000
A176: 金融支出 | B176: 35
A177: 金融部门行政支出 | B177: 0
A178: 金融部门监管支出 | B178: 0
A179: 金融发展支出 | B179: 35
A180: 金融调控支出 | B180: 0
A181: 其他金融支出 | B181: 0
A182: 援助其他地区支出 | B182: 0
A183: 一般公共服务 | B183: 0
A184: 教育 | B184: 0
A185: 文化体育与传媒 | B185: 0
A186: 医疗卫生 | B186: 0
A187: 节能环保 | B187: 0
A188: 农业 | B188: 0
A189: 交通运输 | B189: 0
A190: 住房保障 | B190: 0
A191: 其他支出 | B191: 0
A192: 自然资源海洋气象等支出 | B192: 394
A193: 自然资源事务 | B193: 394
A194: 气象事务 | B194: 0
A195: 其他自然资源海洋气象等支出 | B195: 0
A196: 住房保障支出 | B196: 4,029
A197: 保障性安居工程支出 | B197: 4,026
A198: 住房改革支出 | B198: 3
A199: 城乡社区住宅 | B199: 0
A200: 粮油物资储备支出 | B200: 0
... 27 more rows

Sheet 25.市对区一般公共预算专项转移支付决算表（分县区）
A1: 2020年市对区一般公共预算专项转移支付决算表（分县区）
E2: 单位：万元
A3: 预算科目 | B3: 小计 | C3: 东区 | D3: 西区 | E3: 仁和区
A4: 一般公共服务支出 | B4: =C4+D4+E4 -> 935 | C4: 381 | D4: 324 | E4: 230
A5: 外交支出 | C5: 0 | D5: 0 | E5: 0
A6: 国防支出 | C6: 0 | D6: 0 | E6: 0
A7: 公共安全支出 | B7: =C7+D7+E7 -> 500 | C7: 284 | D7: 47 | E7: 169
A8: 教育支出 | B8: 1,540 | C8: 142 | D8: 83 | E8: 1,315
A9: 科学技术支出 | B9: 7,322 | C9: 7,237 | D9: 35 | E9: 50
A10: 文化旅游体育与传媒支出 | B10: 269 | C10: 214 | D10: 2 | E10: 53
A11: 社会保障和就业支出 | B11: 2,125 | C11: 540 | D11: 1,073 | E11: 512
A12: 卫生健康支出 | B12: 639 | C12: 186 | D12: 71 | E12: 382
A13: 节能环保支出 | B13: 3,099 | C13: 46 | D13: 221 | E13: 2,832
A14: 城乡社区支出 | B14: 12,270 | C14: 4,429 | D14: 605 | E14: 7,236
A15: 农林水支出 | B15: 3,338 | C15: 323 | D15: 429 | E15: 2,586
A16: 交通运输支出 | B16: 2,321 | C16: 27 | D16: 263 | E16: 2,031
A17: 资源勘探工业信息等支出 | B17: 1,169 | C17: 378 | D17: 86 | E17: 705
A18: 商业服务业等支出 | B18: 1,000 | C18: 1,000 | D18: 0 | E18: 0
A19: 金融支出 | B19: =C19+D19+E19 -> 35 | C19: 10 | D19: 6 | E19: 19
A20: 自然资源海洋气象等支出 | B20: 394 | C20: 452 | D20: 0 | E20: -58
A21: 住房保障支出 | B21: 4,029 | C21: 3 | D21: 0 | E21: 4,026
A22: 粮油物资储备支出 | B22: 0 | C22: 0 | D22: 0 | E22: 0
A23: 灾害防治及应急管理支出 | B23: 1,400 | C23: 275 | D23: 20 | E23: 1,105
A24: 其他支出 | B24: 4,885 | C24: 50 | D24: 4,715 | E24: 120
A25: 合计 | B25: =SUM(B4:B24) -> 47,270 | C25: =SUM(C4:C24) -> 15,977 | D25: =SUM(D4:D24) -> 7,980 | E25: =SUM(E4:E24) -> 23,313

Sheet 26.结转资金及使用情况
A1: 2020年市本级结转资金及2021年1至6月使用情况表
C2: 单位：万元
A3: 2020年结转项目 | B3: 结转金额 | C3: 2020年1至6月使用情况
A4: 一般公共服务支出 | B4: 141 | C4: 5
A5: 外交支出
A6: 国防支出
A7: 公共安全支出
A8: 教育支出 | B8: 507 | C8: 120
A9: 科学技术支出
A10: 文化旅游体育与传媒支出 | B10: 225
A11: 社会保障和就业支出 | B11: 2,252
A12: 卫生健康支出 | B12: 1,950 | C12: 2
A13: 节能环保支出 | B13: 5,829 | C13: 1,068
A14: 城乡社区支出 | B14: 22,440 | C14: =561-58+5000+6518+5500 -> 17,521
A15: 农林水支出 | B15: 651
A16: 交通运输支出 | B16: 1
A17: 资源勘探信息等支出 | B17: 998 | C17: 636
A18: 商业服务业等支出 | B18: 1,150 | C18: 824
A19: 金融支出
A20: 自然资源海洋气象等支出 | B20: 58 | C20: 58
A21: 住房保障支出 | B21: 597
A22: 灾害防治及应急管理支出
A23: 其他支出 | B23: 321
A24: 合计 | B24: =SUM(B4:B23) -> 37,120 | C24: =SUM(C4:C23) -> 20,234

Sheet 27.2020年攀枝花市地方政府一般债务余额情况表
A1: 2020年攀枝花市地方政府一般债务余额情况表
C2: 单位：万元
A3: 项 目 | B3: 一般债务
B4: 合计 | C4: 一般债券 | D4: 非债券 形式债务
A5: 一、2019年末余额 | B5: =SUM(C5:D5) -> 1,433,281 | C5: 1,386,296 | D5: 46,985
A6: 二、2020年新增额 | B6: =SUM(C6:D6) -> 19,549 | C6: 19,549
A7: 三、2020年或有债务转化额
A8: 四、2020年偿还额 | B8: =SUM(C8:D8) -> 19,801 | C8: 17,023 | D8: =D5-D9 -> 2,778
A9: 五、2020年末余额 | B9: =SUM(C9:D9) -> 1,433,029 | C9: 1,388,822 | D9: 44,207
A10: 说明：本表反映的举借额和偿还额均包含再融资债券

Sheet 28.2020年攀枝花市地方政府一般债务分地区情况表
A1: 2020年攀枝花市地方政府一般债务分地区情况表
C2: 单位：万元
A3: 地 区 | B3: 债务限额 | C3: 债务余额
A4: 市本级 | B4: 757,433 | C4: 730,398
A5: 东 区 | B5: 136,335 | C5: 131,807
A6: 西 区 | B6: 146,140 | C6: 124,680
A7: 仁和区 | B7: 164,840 | C7: 149,476
A8: 米易县 | B8: 191,504 | C8: 175,030
A9: 盐边县 | B9: 125,422 | C9: 121,638
A10: 合 计 | B10: =SUM(B4:B9) -> 1,521,674 | C10: =SUM(C4:C9) -> 1,433,029

Sheet 29.2020年攀枝花市地方政府专项债务余额情况表
A1: 2020年攀枝花市地方政府专项债务余额情况表
C2: 单位：万元
A3: 项 目 | B3: 专项债务
B4: 合计 | C4: 专项债券 | D4: 非债券 形式债务
A5: 一、2019年末余额 | B5: =SUM(C5:D5) -> 598,595 | C5: 598,595
A6: 二、2020年新增额 | B6: =SUM(C6:D6) -> 207,600 | C6: 207,600
A7: 三、2020年或有债务转化额
A8: 四、2020年偿还额 | B8: =SUM(C8:D8) -> 30,280 | C8: 30,280
A9: 五、2020年末余额 | B9: =SUM(C9:D9) -> 775,915 | C9: 775,915
A10: 说明：本表反映的举借额和偿还额均包含再融资债券

Sheet 30.2020年攀枝花市地方政府专项债务分地区情况表
A1: 2020年攀枝花市地方政府专项债务分地区情况表
C2: 单位：万元
A3: 地 区 | B3: 债务限额 | C3: 债务余额
A4: 市本级 | B4: 398,088 | C4: 376,655
A5: 东 区 | B5: 85,278 | C5: 57,594
A6: 西 区 | B6: 42,851 | C6: 37,704
A7: 仁和区 | B7: 228,435 | C7: 211,942
A8: 米易县 | B8: 37,759 | C8: 35,280
A9: 盐边县 | B9: 58,839 | C9: 56,740
A10: 合 计 | B10: =SUM(B4:B9) -> 851,250 | C10: =SUM(C4:C9) -> 775,915

Sheet 31.2020年攀枝花市地方政府性债务余额情况汇总表
A1: 2020年攀枝花市地方政府性债务余额情况汇总表
E2: 单位：万元
A3: 项 目 | B3: 政府债务 | F3: 或有债务
B4: 合计 | C4: 一般债券 | D4: 专项债券 | E4: 非债券 形式债务
A5: 一、2019年末余额 | B5: =SUM(C5:E5) -> 2,031,876 | C5: 1,386,296 | D5: 598,595 | E5: 46,985 | F5: 189,218
A6: 二、2020年新增额 | B6: =SUM(C6:E6) -> 227,149 | C6: 19,549 | D6: 207,600
A7: 三、2020年或有债务转化额
A8: 四、2020年偿还额 | B8: =SUM(C8:E8) -> 50,081 | C8: 17,023 | D8: 30,280 | E8: 2,778 | F8: =F5-F9 -> 30,150
A9: 五、2020年末余额 | B9: =SUM(C9:E9) -> 2,208,944 | C9: 1,388,822 | D9: 775,915 | E9: 44,207 | F9: 159,068
A10: 说明：本表反映的举借额和偿还额均包含再融资债券

Sheet 32.2020年攀枝花市市本级地方政府性债务余额情况汇总表
A1: 2020年攀枝花市市本级地方政府性债务余额情况汇总表
E2: 单位：万元
A3: 项 目 | B3: 政府债务 | F3: 或有债务
B4: 合计 | C4: 一般债券 | D4: 专项债券 | E4: 非债券 形式债务
A5: 一、2019年末余额 | B5: =SUM(C5:E5) -> 974,631 | C5: 695,358 | D5: 238,735 | E5: 40,538 | F5: 103,678
A6: 二、2020年新增额 | B6: =SUM(C6:E6) -> 154,279 | C6: 6,579 | D6: 147,700
A7: 三、2020年或有债务转化额
A8: 四、2020年偿还额 | B8: =SUM(C8:E8) -> 21,857 | C8: 9,580 | D8: 9,780 | E8: =E5-E9 -> 2,497 | F8: =F5-F9 -> 26,150
A9: 五、2020年末余额 | B9: =SUM(C9:E9) -> 1,107,053 | C9: 692,357 | D9: 376,655 | E9: 38,041 | F9: 77,528
A10: 说明：本表反映的举借额和偿还额均包含再融资债券

Sheet 33.2020年攀枝花市地方政府债务分地区情况表
A1: 2020年攀枝花市地方政府债务分地区情况汇总表
C2: 单位：万元
A3: 地 区 | B3: 债务限额 | C3: 债务余额
A4: 市本级 | B4: 1,155,521 | C4: 1,107,053
A5: 东 区 | B5: 221,613 | C5: 189,401
A6: 西 区 | B6: 188,991 | C6: 162,384
A7: 仁和区 | B7: 393,275 | C7: 361,418
A8: 米易县 | B8: 229,263 | C8: 210,310
A9: 盐边县 | B9: 184,261 | C9: 178,378
A10: 合 计 | B10: =SUM(B4:B9) -> 2,372,924 | C10: =SUM(C4:C9) -> 2,208,944

Sheet 34.2020年攀枝花市政府债务变动情况表
A1: 2020年攀枝花市政府债务变动情况表
F2: 单位：万元
A3: 地 区 | B3: 2019年 年末余额 | C3: 2020年 举借情况 | D3: 2020年 或有债务转化 | E3: 2020年 当年偿还 | F3: 2020年 年末余额
A4: 市本级 | B4: 974,631 | C4: 154,279 | E4: =19360+2497 -> 21,857 | F4: 1,107,053
A5: 东 区 | B5: 180,801 | C5: 14,200 | E5: 5,600 | F5: 189,401
A6: 西 区 | B6: 150,403 | C6: 16,000 | E6: 4,019 | F6: 162,384
A7: 仁和区 | B7: 348,275 | C7: 24,400 | E7: 11,257 | F7: 361,418
A8: 米易县 | B8: 204,823 | C8: 10,535 | E8: =4767+281 -> 5,048 | F8: 210,310
A9: 盐边县 | B9: 172,943 | C9: 7,735 | E9: 2,300 | F9: 178,378
A10: 合 计 | B10: =SUM(B4:B9) -> 2,031,876 | C10: =SUM(C4:C9) -> 227,149 | E10: =SUM(E4:E9) -> 50,081 | F10: =SUM(F4:F9) -> 2,208,944
A11: 说明：本表反映的举借额和偿还额均包含再融资债券

Sheet 35.攀枝花市分地区政府债务十年到期情况表
A1: 攀枝花市分地区政府债务十年到期情况表
I2: 单位：万元
A3: 地 区 | B3: 2021年 | C3: 2022年 | D3: 2023年 | E3: 2024年 | F3: 2025年 | G3: 2026年 | H3: 2027年 | I3: 2029年 | J3: 2030年
A4: 市本级 | B4: 125,564 | C4: 195,186 | D4: 133,443 | E4: 158,250 | F4: 36,230 | G4: 56,188 | H4: 70,772 | I4: 38,912 | J4: 50,500
A5: 东 区 | B5: 23,042 | C5: 22,214 | D5: 8,741 | E5: 19,100 | F5: 25,252 | G5: 12,700 | H5: 28,240 | I5: 233 | J5: 13,044
A6: 西 区 | B6: 19,411 | C6: 21,988 | D6: 23,959 | E6: 10,170 | F6: 27,659 | G6: 3,704 | H6: 6,636 | I6: 6,038 | J6: 11,620
A7: 仁和区 | B7: 52,765 | C7: 38,510 | D7: 81,987 | E7: 94,370 | F7: 15,940 | G7: 8,070 | H7: 12,364 | I7: 6,610 | J7: 19,492
A8: 米易县 | B8: 20,016 | C8: 35,156 | D8: 21,741 | E8: 43,470 | F8: 14,438 | G8: 15,205 | H8: 18,273 | I8: 3,515 | J8: 8,000
A9: 盐边县 | B9: 16,150 | C9: 19,280 | D9: 43,053 | E9: 35,764 | F9: 14,878 | G9: 6,207 | H9: 9,435 | I9: 8,941 | J9: 1,500
A10: 合 计 | B10: =SUM(B4:B9) -> 256,948 | C10: =SUM(C4:C9) -> 332,335 | D10: 312,924 | E10: 361,124 | F10: 134,397 | G10: 102,074 | H10: 145,720 | I10: 64,249 | J10: 104,156
